Cogmind - Beta 17.1 @@@ ROGUE MODE // 2026.09.05 @ 05:51:28 Player: shapeshifter Result: Destroyed by P-80 Master with Gamma Rifle Performance ------------- Evolutions (9) 4500 Regions Visited (27) 5400 Robots Destroyed (361) 1805 Value Destroyed (22033) 22033 Prototype IDs (97) 1940 Alien Tech Used (4) 800 Bonus (45657) 45657 TOTAL SCORE: 82135 Bonus ------- Triggered High Security 500 High Alert Combat Kills 5824 Follower Combat Kills 6752 Prayed to X0-1V1 5000 Major X0-1V1 Interference 15300 Entered Garrisons 1600 Used RIF Installer 4500 Entered DSFs 500 Aligned with FarCom 300 Found Hidden Lab 3000 Hacked Protovariant 500 Scanned by Researcher 500 Pursued by Intercept 1500 Friendly Fire -119 Cogmind --------- Core Integrity 0/1700 Matter 290/300 Energy 80/100 System Corruption 27% Temperature Cool (0) Movement Flying (35) Location -1/Garrison Parts ------- > --- POWER (3) -------- (None) > --- PROPULSION (8) --- Cesium-ion Thruster > --- UTILITY (13) ----- Advanced Target Analyzer > --- WEAPON (2) ------- (None) > --- INVENTORY (6) ---- Experimental Trap Extractor (0/12) Trap Reconfigurator Cooled Nova Cannon Omega Cannon Guided Remote Datajack Peak State ------------ > --- POWER ------------ Light Angular Momentum Engine Light Neutrino Core Micro Antimatter Reactor > --- PROPULSION ------- Antigrav System Combat Gravmag System Improved Gyrokinetic Inverter Improved Gyrokinetic Inverter Experimental Gyrokinetic Inverter Cooled Linear Gravjet Combat Linear Gravjet > --- UTILITY ---------- 2N-1CE's Frost Array Medium Storage Unit Experimental Armor Integrity Analyzer Experimental Reaction Control System Concept Core Shell Concept Core Shell Concept Core Shell Experimental Weapon Shielding Experimental Thermal Shield Improved Hacking Suite Relay Coupler [Heavy] Relay Coupler [Proto] Trap Reconfigurator > --- WEAPON ----------- Concept XC Strikerail Concept XC Strikerail > --- INVENTORY -------- Experimental Trap Extractor Experimental Trap Extractor Experimental Trap Extractor Cooled Nova Cannon Perforator Omega Cannon Gamma Bomb Array Guided Remote Datajack [Rating: 226] Favorites ----------- Power Assembled Flux Generator Engine Improved Deuterium Engine Power Core Light Fission Core Reactor Assembled Flux Generator Propulsion Light Treads Treads Light Treads Leg Assembled Alloy Leg Wheel Subdweller Monowheel Hover Unit Improved Gyrokinetic Inverter Flight Unit Impulse Thruster Array Utility Relay Coupler [Sentry] Device Assembled Nanovents Storage Huge Storage Unit Processor Advanced Visual Processing Unit Hackware Relay Coupler [Sentry] Protection Assembled Alloy Armor Artifact LC Capacitor Weapon Assembled Focal Cannon Energy Gun Gatling Laser Energy Cannon Assembled Focal Cannon Ballistic Gun Assault Rifle Ballistic Cannon Advanced Assault Cannon Launcher Gamma Bomb Array Special Weapon Improved Remote Datajack Impact Weapon Mace Slashing Weapon Heavy Scimitar of Distortion Piercing Weapon Kinetic Spear Special Melee Weapon Datajack Build | -11 -10 -10 -10 -9 -8 -8 -7 -7 -7 -7 -6 -6 -6 -6 -5 -5 -4 -4 -3 -3 -3 -2 -2 -2 -2 -1 -1 ------- Run | Yrd Mat Min Exi Min Mat Gar Fac Gar Fac Gar Fac Gar Fac DSF Fac Gar Fac Gar Res Arm Lab Res Tes Frg Gar Acc Gar Slots Evolved 17 | . . . . . 4 . 2 . . . 2 . . . 2 . 2 . 2 . . 2 . . . 1 . Power 2 | . . . . . . . . . . . 1 . . . . . . . . . . 1 . . . . . Propulsion 3 | . . . . . . . . . . . . . . . 1 . . . . . . 1 . . . 1 . Utility 11 | . . . . . 4 . 2 . . . 1 . . . 1 . 2 . 1 . . . . . . . . Weapon 1 | . . . . . . . . . . . . . . . . . . . 1 . . . . . . . . Parts Attached 373 | 7 6 . 5 8 31 6 10 19 7 17 3 36 1 18 7 6 3 9 . 42 10 38 34 14 7 15 14 Power 52 | 1 1 . . 1 2 . . 1 1 1 2 6 . 4 . . . . . 4 1 8 11 2 3 2 1 Engine 19 | 1 1 . . 1 2 . . 1 1 1 2 5 . 1 . . . . . . . . 1 1 . . 1 Core 7 | . . . . . . . . . . . . 1 . 3 . . . . . 1 . . 1 . . 1 . Reactor 26 | . . . . . . . . . . . . . . . . . . . . 3 1 8 9 1 3 1 . Propulsion 88 | 2 . . 1 5 8 . 2 7 4 6 . 7 . 1 2 . . 3 . 12 . 13 4 1 . 5 5 Treads 19 | 2 . . 1 . 5 . . 3 . 3 . 5 . . . . . . . . . . . . . . . Leg 26 | . . . . 3 . . . 4 3 . . . . 1 1 . . 3 . 7 . 4 . . . . . Wheel 17 | . . . . 2 3 . 2 . 1 3 . 2 . . 1 . . . . . . 3 . . . . . Hover 22 | . . . . . . . . . . . . . . . . . . . . 5 . 6 4 1 . 3 3 Flight 4 | . . . . . . . . . . . . . . . . . . . . . . . . . . 2 2 Utility 154 | 2 3 . 1 . 11 3 5 7 2 7 1 12 1 8 3 4 3 5 . 18 5 12 15 9 4 6 7 Device 58 | 1 1 . . . 4 1 2 1 1 2 1 7 . 1 2 1 . 1 . 10 4 2 9 3 . 3 1 Storage 14 | 1 2 . 1 . 1 . . . 1 2 . . . . . . . . . 1 . 2 1 . . 2 . Processor 10 | . . . . . 2 . 1 1 . . . . . . . . . . . . . 3 2 . . . 1 Hackware 45 | . . . . . . 2 2 4 . 1 . 2 1 5 . 3 3 4 . 6 . 2 1 1 3 1 4 Protection 26 | . . . . . 4 . . 1 . 2 . 3 . 2 1 . . . . 1 . 3 2 5 1 . 1 Artifact 1 | . . . . . . . . . . . . . . . . . . . . . 1 . . . . . . Weapon 79 | 2 2 . 3 2 10 3 3 4 . 3 . 11 . 5 2 2 . 1 . 8 4 5 4 2 . 2 1 Energy Gun 15 | 1 . . . . . . 2 2 . . . 4 . 1 . . . . . 2 2 1 . . . . . Energy Cannon 11 | . . . . . 3 1 1 . . 1 . 1 . . . . . . . 2 1 . 1 . . . . Ballistic Gun 25 | 1 1 . 2 2 6 1 . 2 . . . 2 . 2 2 . . . . . . 1 1 2 . . . Ballistic Cannon 7 | . . . . . . . . . . 1 . 3 . . . . . . . . . . 1 . . 1 1 Launcher 6 | . 1 . . . 1 . . . . 1 . . . . . . . . . 1 . 1 1 . . . . Special Weapon 8 | . . . . . . . . . . . . 1 . . . 2 . 1 . 2 1 . . . . 1 . Impact Weapon . | . . . . . . . . . . . . . . . . . . . . . . . . . . . . Slashing Weapon 2 | . . . . . . . . . . . . . . . . . . . . 1 . 1 . . . . . Piercing Weapon 1 | . . . . . . . . . . . . . . . . . . . . . . 1 . . . . . Special Melee Weapon 4 | . . . 1 . . 1 . . . . . . . 2 . . . . . . . . . . . . . Unidentified Prototypes 37 | . 1 . . . 1 . . . . . . . . . 1 1 . . . 1 7 6 12 6 . . 1 Corrupted Parts 13 | . . . . . . . . 6 . . . 2 . . . . . . . 2 3 . . . . . . System Corruption 60 | . . . . . . . . 25 . . . 11 . . . . . . . 7 17 . . . . . . Parts Lost 194 | . . . . 4 7 2 . 17 . 6 . 20 . 7 . 3 . . 3 36 1 25 13 4 14 19 13 Power 31 | . . . . 1 1 . . 1 . . . 7 . 2 . . . . . 3 1 8 1 2 3 1 . Propulsion 52 | . . . . 2 3 1 . 6 . 3 . 3 . . . . . . . 9 . 6 3 . 3 9 4 Utility 80 | . . . . 1 1 1 . 3 . 1 . 7 . 3 . 1 . . 3 19 . 5 9 2 7 8 9 Weapon 31 | . . . . . 2 . . 7 . 2 . 3 . 2 . 2 . . . 5 . 6 . . 1 1 . Highest Loss Streak 13 | . . . . 3 2 2 . 7 . 2 . 6 . 3 . 1 . . 2 13 1 6 3 2 11 12 12 To Critical Strikes 3 | . . . . . . . . . . . . . . . . . . . . 2 . . . . 1 . . Average Backups 18 | 2 10 19 19 19 19 22 21 23 23 23 23 24 26 21 19 22 21 22 20 14 13 10 5 7 8 8 4 Power . | . 1 2 2 1 1 1 1 . . . . . . . . . 1 1 1 . . . . . . 1 . Propulsion 1 | . . 1 . . 1 . . . . 2 1 1 . 2 4 3 3 1 . . . . . . . . . Utility 10 | . 2 3 3 4 7 13 10 12 14 15 16 18 22 12 9 13 13 14 15 10 5 3 1 1 4 3 1 Weapon 5 | . 5 11 13 12 7 6 7 8 7 4 5 4 3 4 4 3 3 3 3 2 4 3 3 5 3 3 1 Tool/Special . | . . . . . . . . . . . . . . . . . . . . . . . . . . . . Unused Backups 124 | . 3 1 2 1 7 1 1 1 3 10 . 24 . 9 . 7 . 11 . 3 2 1 19 16 1 1 . Power 10 | . 1 . 1 . . 1 . . . 1 . 2 . . . . . 1 . 1 . . 1 1 . . . Propulsion 9 | . . . . . 1 . . 1 . 1 . . . 1 . 1 . . . . . . 2 2 . . . Utility 54 | . . . 1 . 2 . 1 . . 2 . 6 . 7 . 3 . 7 . 2 2 1 9 9 1 1 . Weapon 49 | . 2 1 . 1 4 . . . 3 6 . 16 . . . 3 . 3 . . . . 6 4 . . . Tool/Special 2 | . . . . . . . . . . . . . . 1 . . . . . . . . 1 . . . . Average Slot Usage (%) 83 | . 100 100 100 85 87 82 89 92 95 80 84 75 79 78 80 76 79 82 82 81 77 77 90 92 86 55 28 Engine 4 | . 14 14 14 13 7 6 6 6 7 7 9 7 6 2 . . . . . . . . . . 3 . 1 Reactor 2 | . . . . . . . . . . . . . . . 2 5 5 5 4 4 8 8 8 5 4 2 . Treads 6 | . 28 28 28 11 14 5 . 3 4 5 6 7 12 1 . . . . . . . . . . . . . Leg 5 | . . . . 5 . . . 13 11 2 . . . 5 7 11 10 16 16 11 9 6 . . . . . Wheel 2 | . . . . 8 8 13 14 1 4 5 6 3 . . 2 . . . . . . . . . . . . Hover 2 | . . . . . . . . . . . . . . . . . . . . 5 . 3 26 26 25 13 1 Device 14 | . 14 14 14 5 8 3 16 7 7 6 11 16 18 15 11 20 24 23 25 24 18 11 17 18 9 4 6 Storage 7 | . 14 14 14 13 8 6 6 7 7 7 6 6 6 6 5 11 10 10 9 5 4 5 2 4 4 6 . Processor 4 | . . . . . 13 13 20 19 21 12 6 1 . . . . . . . . . 3 9 7 4 3 4 Hackware 12 | . . . . . . 3 8 19 14 17 18 15 16 24 26 12 10 14 13 14 18 23 13 11 15 10 11 Protection 4 | . . . . . 7 6 . 1 7 1 6 4 6 5 4 4 9 7 4 4 9 6 5 9 9 1 . Energy Gun 1 | . 4 . . . . . . . . . . 5 6 1 . . . . . . 2 1 . . . . . Energy Cannon 2 | . . . . . . . 4 8 . 1 6 1 . . 1 6 5 4 4 3 3 2 . 2 . . . Ballistic Gun 6 | . 22 28 17 26 15 19 8 . 10 10 . . 6 9 9 . . . . . . . . . 7 . . Peak Build Rating 226 | 7 22 11 15 15 51 55 61 57 63 69 87 91 72 88 138 150 168 165 173 177 189 188 209 226 217 163 98 Average Rating 93 | 5 8 10 12 14 37 48 52 46 57 62 79 75 71 77 108 143 159 159 168 153 163 156 186 188 187 125 70 On Entrance 88 | . 7 10 11 15 13 44 40 50 42 61 64 82 69 72 85 138 150 153 159 169 133 188 163 182 217 126 43 Avg Prop Armor Cover (%) 10 | . . . . . 8 4 . 8 11 14 13 15 . 15 13 . . . . 4 . 8 . . 5 8 4 Naked Turns . | . . . . . . . . . . . . . . . . . . . . . . . . . . . . Heaviest Build 196 | 15 52 52 53 53 116 118 107 105 105 177 186 196 165 171 136 159 156 158 151 153 119 131 88 82 71 64 12 Greatest Support 153 | 40 40 40 40 40 60 26 42 60 60 75 20 95 95 95 59 100 100 130 130 153 110 148 94 91 91 52 12 Greatest Overweight (x) 34 | . 1 1 1 17 11 4 4 34 6 8 9 9 1 8 4 1 1 1 1 2 1 8 1 1 1 1 3 Average Overweight (x) 1 | . . 1 1 1 5 3 3 2 5 6 8 5 1 1 2 1 1 1 1 . . 1 . . . . . Largest Inventory Capacity 31 | 8 21 21 21 21 26 26 26 26 26 31 31 31 31 31 26 26 26 26 26 26 16 16 11 11 11 11 6 Average Capacity 23 | 7 13 21 21 21 24 26 26 26 26 29 31 30 31 26 26 26 26 26 26 19 16 14 8 11 11 10 6 Most Carried 31 | 4 18 21 21 21 26 26 26 26 26 31 27 31 29 31 26 26 26 26 24 26 16 16 11 11 11 11 6 Average Carried 21 | 2 10 19 20 20 23 25 23 25 25 27 26 28 28 26 25 25 24 25 22 15 14 11 7 10 10 9 5 Final Capacity 31 | 8 21 21 21 21 26 26 26 26 26 31 31 31 31 26 26 26 26 26 26 16 16 6 11 11 11 6 6 Final Carried 29 | 3 18 21 21 21 25 24 26 26 25 26 26 29 28 26 26 26 24 25 22 12 16 6 10 11 9 6 6 Class Distribution -------------------- 20% | Botlord-Golem 20% | Hauler-Mutant 17% | Botlord-Mutant 15% | Mutant 7% | Hauler-Skirmisher 6% | Scavenger-Mutant 5% | Bothacker-Mutant 3% | Hacker-Mutant Dominant Class ---------------- Mutant | -10/Materials Mutant | -10/Mines Mutant | -10/Exiles Mutant | -9/Mines Hauler-Skirmisher | -8/Materials Hauler-Skirmisher | -8/Garrison Bothacker-Mutant | -7/Factory Bothacker-Mutant | -7/Garrison Hauler-Mutant | -7/Factory Hauler-Mutant | -7/Garrison Hauler-Mutant | -6/Factory Hauler-Mutant | -6/Garrison Hauler-Mutant | -6/Factory Botlord-Mutant | -6/DSF Botlord-Mutant | -5/Factory Botlord-Golem | -5/Garrison Botlord-Golem | -4/Factory Botlord-Golem | -4/Garrison Botlord-Golem | -3/Research Botlord-Mutant | -3/Armory Botlord-Mutant | -3/Lab Botlord-Mutant | -2/Research Scavenger-Mutant | -2/Testing Scavenger-Mutant | -2/Protoforge Scavenger-Mutant | -2/Garrison Hacker-Mutant | -1/Access Scavenger-Mutant | -1/Garrison Resources | -11 -10 -10 -10 -9 -8 -8 -7 -7 -7 -7 -6 -6 -6 -6 -5 -5 -4 -4 -3 -3 -3 -2 -2 -2 -2 -1 -1 ----------- Run | Yrd Mat Min Exi Min Mat Gar Fac Gar Fac Gar Fac Gar Fac DSF Fac Gar Fac Gar Res Arm Lab Res Tes Frg Gar Acc Gar Matter Collected 20206 | 324 275 110 345 400 1258 306 572 453 90 1829 459 2910 . 948 159 1581 29 883 56 1366 74 892 2906 326 598 672 385 Remotely 1279 | . . . . . . . . 36 . . . 1243 . . . . . . . . . . . . . . . Salvage Created 19525 | 248 406 281 . 532 1814 822 199 486 90 1679 230 1500 . 211 159 557 232 208 104 2005 74 2814 2715 949 492 603 115 Parts 840 | 17 21 15 . 28 87 52 11 14 3 77 8 47 . 13 5 35 11 12 4 83 3 98 111 35 19 23 8 Haulers Intercepted 5 | . 1 . . . 2 . . . . . . . . . . . . . . . . . 1 . . 1 . Recyclers Shooed 16 | . 1 . . . 2 . 1 . . . 1 . . . 4 . . . . . . 5 2 . . . . Parts Field Recycled . | . . . . . . . . . . . . . . . . . . . . . . . . . . . . Retrieved Matter . | . . . . . . . . . . . . . . . . . . . . . . . . . . . . Parts Self-Destructed . | . . . . . . . . . . . . . . . . . . . . . . . . . . . . Prevented . | . . . . . . . . . . . . . . . . . . . . . . . . . . . . Parts Restored . | . . . . . . . . . . . . . . . . . . . . . . . . . . . . Kills | -11 -10 -10 -10 -9 -8 -8 -7 -7 -7 -7 -6 -6 -6 -6 -5 -5 -4 -4 -3 -3 -3 -2 -2 -2 -2 -1 -1 ------- Run | Yrd Mat Min Exi Min Mat Gar Fac Gar Fac Gar Fac Gar Fac DSF Fac Gar Fac Gar Res Arm Lab Res Tes Frg Gar Acc Gar Combat Hostiles Destroyed 281 | . 6 8 . 10 27 23 1 8 . 26 4 34 . 5 . 7 4 4 2 28 1 33 24 8 8 7 3 Melee 3 | . . . . . . . . . . . . . . . . . . . . 1 . 2 . . . . . Guns 105 | . 6 8 . 9 21 20 1 2 . 13 . 11 . 4 . . . . . . . 1 . . 8 1 . Cannons 100 | . . . . . 1 . . 4 . 6 3 15 . . . 7 4 4 2 16 . 14 15 . . 6 3 AOE 41 | . . . . 1 4 3 . . . 7 . 2 . 1 . . . . . 5 . 11 4 3 . . . Classes Destroyed 23 | 2 4 2 . 1 4 1 . 1 . 2 . 1 . . . 1 . . . 2 . . 1 . . 1 . Worker 16 | . 1 . . 3 5 . 2 . . . . . . . . . . . . . . 1 3 1 . . . Builder 10 | . . . . . 3 . . . . . . . . . . . . . . . . 4 2 . . 1 . Tunneler 10 | 7 . . . 2 1 . . . . . . . . . . . . . . . . . . . . . . Hauler 5 | . 1 . . . 2 . . . . . . . . . . . . . . . . . 1 . . 1 . Recycler 18 | 1 1 . . 1 4 . 1 . 1 . . . . . 1 . . . . . . 6 2 . . . . Mechanic 4 | . . . . . . . . . . . . . . . . 1 . . . 1 . 1 1 . . . . Operator 2 | . 1 . . . . . . . . . . 1 . . . . . . . . . . . . . . . Watcher 11 | . . . . . 1 . 1 1 . . 1 . . . . . . . . 1 . 1 3 2 . . . Swarmer 45 | . . 3 . 4 4 11 . 1 . 11 . . . . . 1 . . 1 . . 5 . . 4 . . Cutter 6 | . . . . . . . . . . . . 4 . . . . . 2 . . . . . . . . . Grunt 104 | . 6 4 . 5 14 9 1 3 . 11 1 16 . . . . . . . 10 . 7 8 5 2 2 . Brawler 8 | . . . . 1 . 2 . . . . . 1 . . . . . 1 . 1 . . 2 . . . . Duelist 5 | . . . . . . . . . . 1 . . . . . . . . . 4 . . . . . . . Protector 2 | . . . . . . . . . . . . . . . . . . . . 2 . . . . . . . Sentry 28 | . . 1 . . 4 1 . 3 . 2 1 9 . . . 3 . . . 1 . . 1 . 1 1 . Demolisher 1 | . . . . . . . . . . . . . . . . . . . . 1 . . . . . . . Specialist 9 | . . . . . 4 . . . . . . . . . . 1 . . . 2 . 2 . . . . . Hunter 25 | . . . . . . . . 1 . . . . . 3 . 1 1 1 . 2 . 4 7 2 1 2 . Programmer 33 | . . . . . . . . . . 2 2 1 . 1 . 2 3 . 1 5 . 9 4 . . 1 2 Heavy 2 | . . . . . 1 . . . . . . . . 1 . . . . . . . . . . . . . Q-Series 2 | . . . . . . . . . . . . . . . . . . . . . . . 2 . . . . Behemoth 5 | . . . . . . 2 . . . . . 1 . . . . . . . . . 2 . . . . . Hotshot 2 | . . . . . . . . . . . . . . . . . . . . . . . . 2 . . . Tracker 2 | . . . . . . . . . . . . . . . . . . . . . . 2 . . . . . Combat Programmer 2 | . . . . . . . . . . . . . . . . . . . . . . 2 . . . . . Assembled 1 | . . . . . . . . . . . . . . . . . . . . . . . . . . 1 . Thug 2 | . . . . . . . . . . . . 2 . . . . . . . . . . . . . . . Infiltrator 1 | . . . . . . . . . . . . . . . . . . . . . . . . . . . 1 Best Kill Streak 16 | 2 2 2 . 4 10 11 3 3 1 6 2 6 . 2 1 3 2 2 1 10 1 16 11 4 4 4 2 Combat Bots Only 14 | . 2 2 . 2 6 11 1 3 . 6 2 6 . 2 . 3 2 2 1 10 1 14 5 3 4 3 2 Max Kills in Single Turn 4 | 2 1 1 . 2 4 2 1 1 1 3 1 2 . 1 1 1 1 1 1 2 1 4 3 2 2 1 1 Gunslinging 1 | . . . . . . 1 . . . 1 . 1 . . . . . . . . . . . . 1 . . Exploded 3 | . . . . 1 3 1 . . . 3 . 1 . 1 . . . . . 2 . 3 2 2 . . . Melee 1 | . . . . . . . . . . . . . . . . . . . . 1 . 1 . . . . . Uniques/NPCs Destroyed 1 | . . . . . . . . . . . . . . . . . . . . . 1 . . . . . . A5 (-3/Lab) Combat | -11 -10 -10 -10 -9 -8 -8 -7 -7 -7 -7 -6 -6 -6 -6 -5 -5 -4 -4 -3 -3 -3 -2 -2 -2 -2 -1 -1 -------- Run | Yrd Mat Min Exi Min Mat Gar Fac Gar Fac Gar Fac Gar Fac DSF Fac Gar Fac Gar Res Arm Lab Res Tes Frg Gar Acc Gar Hostile Shots Fired 3549 | . 30 36 . 64 174 92 3 257 . 295 28 654 . 79 . 73 32 41 28 354 30 620 171 70 136 136 146 Missed 1190 | . 7 9 . 13 55 28 . 72 . 84 12 224 . 22 . 19 16 14 10 102 8 213 86 49 65 39 43 Hits 2359 | . 23 27 . 51 119 64 3 185 . 211 16 430 . 57 . 54 16 27 18 252 22 407 85 21 71 97 103 Melee 62 | . . . . 1 . . . . . . . 11 . . . . . 4 . 43 . . . . . 3 . Projectile 2297 | . 23 27 . 50 119 64 3 185 . 211 16 419 . 57 . 54 16 23 18 209 22 407 85 21 71 94 103 AOE 14 | . . . . . . . . . . . . 2 . . . . . . . 9 . . . 3 . . . Critical Strikes 100 | . . . . 1 2 4 . 3 . 3 . 15 . 1 . 4 1 3 1 21 . 20 5 1 2 5 8 Actively Blocked 28 | . . . . . . . . . . . . 15 . . . . . . . 12 . . . 1 . . . Part Disruptions 12 | . . . . . . . . . . . . . . 1 . . . . . 3 . 3 . 1 . 4 . Damage Taken 38780 | . 316 237 . 594 1965 1062 30 1785 . 2262 149 5723 . 1310 21 923 457 767 656 5441 352 6164 2431 733 1469 1840 2093 Core 6509 | . 41 70 . 87 285 93 . 408 . 349 3 576 . 108 . 92 19 89 93 1096 63 889 394 3 32 468 1251 Absorbed by Shields 5392 | . . . . . . . 32 106 . 383 57 494 . . . . . . . 529 223 3274 81 . . 64 149 Reduced by Siege Mode 129 | . . . . . . . . . . . . 129 . . . . . . . . . . . . . . . Redirected to Shielding 991 | . . . . . . . . . . . . . . . . . . . . . 41 316 101 234 235 64 . Ignored by Resistances 1279 | . . . . . . . . 39 . . 3 103 . . . 188 95 155 118 207 . . 208 104 59 . . Core Remaining (%) 63 | 100 . . . 55 . 41 . . . 26 . . . 100 . 91 . 91 . . 10 . . . 54 . . Volleys Fired 1444 | 18 35 25 . 55 111 58 23 53 1 118 21 192 . 26 5 85 22 96 25 176 15 104 75 39 28 24 14 Largest 3 | 2 2 2 . 2 2 3 2 2 2 2 2 2 . 2 2 2 1 1 1 2 1 2 1 1 2 2 1 Hottest 200 | 70 70 40 . 43 112 84 110 160 66 138 138 160 . 108 70 50 25 25 25 120 120 200 200 80 64 150 100 Shots Fired 2032 | 36 66 51 . 110 211 145 28 78 3 203 28 248 . 44 10 95 22 96 25 181 16 133 77 38 47 28 13 Gun 1066 | 36 62 51 . 110 184 137 10 31 3 162 . 128 . 36 10 . . . . 7 . 53 1 . 43 2 . Cannon 786 | . . . . . 23 1 18 47 . 33 28 119 . . . 61 13 86 10 136 16 78 60 19 . 26 12 Launcher 52 | . 4 . . . 4 7 . . . 8 . 1 . 8 . . . . . . . 1 13 6 . . . Special 128 | . . . . . . . . . . . . . . . . 34 9 10 15 38 . 1 3 13 4 . 1 Kinetic 968 | 18 53 51 . 110 184 137 6 10 3 178 7 47 . 27 10 . . . . . . 10 44 . 43 19 11 Thermal 778 | 18 9 . . . . 1 18 47 . 17 21 196 . 9 . 61 13 86 10 134 16 76 17 19 . 9 1 Explosive 33 | . 4 . . . 4 7 . . . 8 . 1 . 8 . . . . . . . 1 . . . . . Electromagnetic 125 | . . . . . 23 . 4 21 . . . 4 . . . . . . . 9 . 45 13 6 . . . Robot Hit Streak 34 | 9 15 10 . 9 16 12 3 16 1 14 5 16 . 12 10 15 13 14 20 16 1 10 9 15 34 10 7 Robot Miss Streak 10 | 3 2 5 . 4 5 9 7 1 1 5 2 6 . 3 1 4 2 1 1 6 2 3 10 5 1 10 1 Penetration Max 2 | . . . . . . 1 . . . 1 . . . . . . . . . . . 1 1 . 2 1 . Secondary Targets 19 | . . 1 . 1 1 6 . 1 . 4 . 3 . . . . . . . . . . . . 2 . . Max Gunslinging Chain 2 | . . 1 . 1 1 2 . 1 . 1 . 1 . . . . . . . . . . . . 1 . . Capacitor 52 | . . . . . . . . . . . . . . . . . . . . 52 . . . . . . . Shots Hit Robots 1321 | 24 47 26 4 62 142 93 19 54 1 120 17 166 . 35 8 50 18 30 20 136 2 87 74 15 39 22 10 Core Hits 791 | 9 19 12 . 19 59 45 6 15 1 82 7 82 . 33 4 11 4 7 3 61 1 59 170 40 17 23 2 Critical Kills 43 | . . . . 1 1 . . 1 . 4 . 1 . 2 1 . . . . 2 1 4 15 1 2 7 . Critical Parts Destroyed 76 | 1 . . . 1 1 3 . . . 5 . . . 3 2 . . . . . . . 47 . 3 10 . Critical Strikes 148 | 3 . . . 2 2 3 . 1 . 9 . 13 . 5 3 . . . . 4 1 5 70 1 6 17 3 Burn 9 | 2 . . . . . . . . . . . 7 . . . . . . . . . . . . . . . Meltdown 10 | . . . . . . . . 1 . . . 1 . . . . . . . 2 1 4 . 1 . . . Destroy 118 | 1 . . . 2 2 3 . . . 9 . . . 5 3 . . . . . . . 70 . 6 17 . Blast 8 | . . . . . . . . . . . . 5 . . . . . . . . . . . . . . 3 Corrupt 1 | . . . . . . . . . . . . . . . . . . . . . . 1 . . . . . Sever 2 | . . . . . . . . . . . . . . . . . . . . 2 . . . . . . . Melee Attacks 83 | . . . 4 . . 14 7 7 . . . . . 6 . . . . . 14 . 9 22 . . . . Impact . | . . . . . . . . . . . . . . . . . . . . . . . . . . . . Slashing 43 | . . . . . . . . . . . . . . . . . . . . 14 . 9 20 . . . . Piercing 2 | . . . . . . . . . . . . . . . . . . . . . . . 2 . . . . Sneak Attacks 28 | . . . 4 . . 12 3 3 . . . . . 1 . . . . . 1 . 3 1 . . . . Combat Hostiles 2 | . . . . . . . . . . . . . . . . . . . . . . 2 . . . . . Follow-up Attacks 1 | . . . . . . . . . . . . . . . . . . . . . . . 1 . . . . Damage Inflicted 48369 | 319 613 328 . 859 3231 2045 291 1071 28 4214 629 5719 . 868 66 1257 517 1085 395 6838 76 8676 4194 1876 1204 744 1226 Guns 13969 | 310 606 328 . 859 2053 1588 115 549 28 2749 . 2190 . 444 66 . . . . 57 . 757 . . 1204 66 . Cannons 21202 | . . . . . 535 . 176 482 . 502 629 3246 . . . 1257 512 1085 395 4900 60 3948 1298 287 . 678 1212 Explosions 11646 | . . . . . 643 457 . 40 . 963 . 255 . 424 . . . . . 1498 . 3397 2380 1589 . . . Melee 1457 | . . . . . . . . . . . . . . . . . . . . 367 . 574 516 . . . . Ramming 95 | 9 7 . . . . . . . . . . 28 . . . . 5 . . 16 16 . . . . . 14 Kinetic 14891 | 148 532 328 . 859 2146 1588 72 166 28 3048 90 1936 . 260 66 . . . . . . 293 554 . 1204 361 1212 Thermal 23593 | 162 74 . . . . . 176 522 . 203 539 3652 . 184 . 1257 512 1085 395 5652 60 6913 1245 579 . 383 . Explosive 2191 | . . . . . 28 457 . . . 963 . . . 424 . . . . . . . 115 204 . . . . Electromagnetic 6053 | . . . . . 1057 . 43 383 . . . 103 . . . . . . . 714 . 781 1675 1297 . . . Impact . | . . . . . . . . . . . . . . . . . . . . . . . . . . . . Slashing 1423 | . . . . . . . . . . . . . . . . . . . . 367 . 574 482 . . . . Piercing 34 | . . . . . . . . . . . . . . . . . . . . . . . 34 . . . . Entropic 89 | . . . . . . . . . . . . . . . . . . . . 89 . . . . . . . Highest Corruption 41 | . . . . . 7 . . 25 25 10 . 18 18 30 . 1 1 1 . 41 31 32 32 26 26 20 26 Average Corruption 13 | . . . . . 4 . . 15 11 2 . 4 18 27 . 1 1 1 . 25 20 21 19 22 26 19 21 Corruption Purged . | . . . . . . . . . . . . . . . . . . . . . . . . . . . . Corruption Blocked 8 | . . . . . . . . . . . . . . . . . . . . . . . 8 . . . . Effects 458 | . . . . . 23 . . 46 7 18 . 19 1 87 . 1 1 18 . 54 21 56 38 23 15 18 12 Message Errors 95 | . . . . . 6 . . 11 1 4 . 4 1 18 . 1 . 3 . 7 5 13 9 5 3 2 2 Matter Fused 105 | . . . . . 4 . . 13 1 4 . 4 . 25 . . 1 6 . 9 5 11 5 4 4 6 3 Heat Flow Errors 48 | . . . . . 1 . . 5 . 3 . 1 . 9 . . . 1 . 2 2 9 7 2 1 3 2 Energy Discharges 57 | . . . . . 3 . . 4 1 . . 5 . 13 . . . 2 . 6 4 6 6 5 1 1 . Parts Rejected 8 | . . . . . . . . . . . . 1 . . . . . . . 2 . 2 . 1 1 1 . Parts Fused 7 | . . . . . 2 . . . . . . . . 2 . . . . . . . 1 2 . . . . Data Loss (minor) 56 | . . . . . 3 . . 6 3 3 . 2 . 7 . . . 6 . 9 2 6 3 . 1 2 3 Data Loss (major) 20 | . . . . . 2 . . 2 . . . . . 6 . . . . . 4 1 1 1 2 1 . . Misfires 23 | . . . . . 2 . . 3 1 1 . 1 . 3 . . . . . 2 1 3 3 1 1 1 . Alerts 7 | . . . . . . . . . . 1 . . . 2 . . . . . 2 . 1 1 . . . . Misdirections 14 | . . . . . . . . . . . . . . . . . . . . 8 1 2 . 1 1 . 1 Weapon Failures 18 | . . . . . . . . 2 . 2 . 1 . 2 . . . . . 3 . 1 1 2 1 2 1 Overload Shots 9 | . . . . . . . . . . . . . . . . . . . . . . . 8 . . 1 . Overflow Damage 2354 | . . . . . 58 . 15 40 . 13 40 190 . . . 30 47 31 10 332 . 1030 133 1 . . 384 Projectiles 1561 | . . . . . 22 . 15 10 . 8 40 169 . . . 30 47 31 10 217 . 578 . . . . 384 Explosions 375 | . . . . . 36 . . 30 . 5 . 21 . . . . . . . 22 . 215 45 1 . . . Melee 418 | . . . . . . . . . . . . . . . . . . . . 93 . 237 88 . . . . Knockbacks 47 | . . . . . 1 . . . . 3 1 9 . . . . . . . . . . 12 . . 12 9 Impact . | . . . . . . . . . . . . . . . . . . . . . . . . . . . . Kinetic 43 | . . . . . 1 . . . . 2 1 9 . . . . . . . . . . 12 . . 11 7 Secondary 4 | . . . . . . . . . . 1 . . . . . . . . . . . . . . . 1 2 Self-Inflicted Damage 649 | . 16 . . . . 79 . 48 . 18 . 65 . 14 . . . . . 115 . 98 153 36 . . 7 Shots 26 | . 1 . . . . 2 . 1 . 1 . 1 . 1 . . . . . 2 . 2 11 4 . . . Rammed 10 | 2 3 . . . . . . . . . . 3 . . . . . . . . . . . . . . 2 Targets Rammed 15 | 2 3 . . . . . . . . . . 3 . . . . 1 . . 2 2 . . . . . 2 Kicked 5 | . . . . . . . . . . . . . . . . . 1 . . 2 2 . . . . . . Crushed . | . . . . . . . . . . . . . . . . . . . . . . . . . . . . Highest Temperature 445 | 45 99 3 . 51 301 164 . 230 . 414 312 357 . 255 . . . 73 . 445 149 234 199 173 141 285 129 Average Temperature 89 | 16 43 3 . 9 87 41 . 67 . 101 96 107 . 104 . . . 27 . 140 111 71 97 101 76 58 60 Received Heat Transfer 7551 | . 141 51 . 219 657 330 12 512 . 642 14 1978 . 84 . 150 33 160 84 553 . 1391 94 108 72 230 36 Effects 7 | . . . . . . . . . . 1 . 1 . . . . . . . 5 . . . . . . . Shutdowns 2 | . . . . . . . . . . . . 1 . . . . . . . 1 . . . . . . . Energy Bleed 1 | . . . . . . . . . . 1 . . . . . . . . . . . . . . . . . Interference 3 | . . . . . . . . . . . . . . . . . . . . 3 . . . . . . . Damage (minor) 1 | . . . . . . . . . . . . . . . . . . . . 1 . . . . . . . Siege Activations 1 | . . . . . . . . . . . . 1 . . . . . . . . . . . . . . . Total Turns 43 | . . . . . . . . . . . . 43 . . . . . . . . . . . . . . . Longest Duration 43 | . . . . . . . . . . . . 43 . . . . . . . . . . . . . . . Martial Activations . | . . . . . . . . . . . . . . . . . . . . . . . . . . . . Shielding Activations . | . . . . . . . . . . . . . . . . . . . . . . . . . . . . Robots Disrupted . | . . . . . . . . . . . . . . . . . . . . . . . . . . . . Combat Hostiles . | . . . . . . . . . . . . . . . . . . . . . . . . . . . . Robots Corrupted 17 | . . . . . 1 . . 1 . . . . . . . . . . . 3 . 1 5 6 . . . Combat Hostiles 16 | . . . . . 1 . . 1 . . . . . . . . . . . 3 . 1 5 5 . . . Parts Fried 33 | . . . . . 6 . . 1 . . . 1 . . . . . . . 9 . 1 8 7 . . . Impact Corruptions . | . . . . . . . . . . . . . . . . . . . . . . . . . . . . Robots Melted 16 | . . . . . . . . 1 . . 1 6 . . . . . . . 2 1 4 . 1 . . . Combat Hostiles 15 | . . . . . . . . 1 . . 1 6 . . . . . . . 2 1 4 . . . . . Parts Melted 58 | 3 . . . . 12 1 . 4 . 1 . 16 . . . 2 . . 1 3 2 10 . 3 . . . Heat Transferred 21519 | 629 222 . . . . . 350 721 . 300 750 6632 . 425 . 625 250 471 200 3451 36 5090 790 268 . 309 . Parts Sabotaged . | . . . . . . . . . . . . . . . . . . . . . . . . . . . . Parts Stolen . | . . . . . . . . . . . . . . . . . . . . . . . . . . . . Parts Stripped . | . . . . . . . . . . . . . . . . . . . . . . . . . . . . Power Chain Reactions 7 | . . . . . . . . 1 . . . . . . . . . . . 1 . 1 3 1 . . . Latent Energy Used 1051 | . . . . . 182 . . . . . . 153 . . . . . . . 400 . 316 . . . . . LE Corruption 20 | . . . . . 3 . . . . . . 5 . . . . . . . 6 . 6 . . . . . Alert | -11 -10 -10 -10 -9 -8 -8 -7 -7 -7 -7 -6 -6 -6 -6 -5 -5 -4 -4 -3 -3 -3 -2 -2 -2 -2 -1 -1 ------- Run | Yrd Mat Min Exi Min Mat Gar Fac Gar Fac Gar Fac Gar Fac DSF Fac Gar Fac Gar Res Arm Lab Res Tes Frg Gar Acc Gar Maximum Alert Level 5 | . . . . . 2 3 2 2 1 4 2 5 4 3 2 4 3 5 5 4 . 3 4 4 3 2 2 Low Security (%) 20 | 100 100 100 . 100 33 . 36 16 14 5 . . . . . 4 . . . . . 45 . . . . . Level 1 13 | . . . . . 36 12 25 59 85 26 . 8 . . 49 30 . . . . . 5 . . . . 19 Level 2 19 | . . . . . 29 43 37 23 . 24 99 26 . . 50 23 32 . . . . 17 23 . . 100 80 Level 3 25 | . . . . . . 43 . . . 28 . 21 . 100 . 39 67 19 . 55 . 30 15 37 100 . . Level 4 11 | . . . . . . . . . . 14 . 16 100 . . 1 . 22 . 44 . . 60 62 . . . Level 5 8 | . . . . . . . . . . . . 26 . . . . . 57 34 . . . . . . . . High Security . | . . . . . . . . . . . . . . . . . . . 65 . . . . . . . . Max Security . | . . . . . . . . . . . . . . . . . . . . . . . . . . . . Peak Influence 2927 | 10 51 52 . 75 438 926 485 547 287 1124 590 2539 1337 1014 532 1109 989 2927 1712 1448 . 931 1382 1301 982 624 660 Initial 1646 | . 3 8 . . . 269 485 117 287 127 590 355 1332 928 532 188 581 692 1646 1100 . . 521 740 835 578 364 Average 742 | 1 11 7 . 25 266 683 320 323 236 604 487 1153 1331 990 403 587 742 1835 1650 1115 . 414 1068 1026 932 582 491 Influence Increases 18167 | 40 238 161 . 300 1032 757 75 680 5 1077 252 2464 5 236 23 1071 726 2435 183 1560 . 1769 1366 848 310 228 326 Destroy 0b10 Robot/C 6960 | . 120 160 . 200 560 460 40 280 . 560 120 800 . 100 . 260 200 440 40 680 . 720 500 300 160 120 140 Destroy 0b10 Robot/NC 490 | 40 20 . . 30 80 . 20 5 5 45 5 10 . . 5 5 35 5 10 20 . 65 60 15 . 10 . Destroy Leader 966 | . 42 . . 40 126 20 12 20 . 20 42 40 . 30 . 30 40 20 22 106 . 142 98 24 20 32 40 Allied During Kill 1831 | . . 1 . . 16 22 3 16 . 16 3 26 . . . 94 223 451 57 254 . 114 127 335 . . 73 Trap Triggered on 0b10 250 | . . . . . . 20 . . . 20 30 90 . . . 10 . . 10 30 . . . . 40 . . Successful Hack 142 | . . . . . 14 . . 14 . . . . 5 . 18 . . 14 . 12 . 10 41 . 14 . . Select Force Hacks 30 | . 30 . . . . . . . . . . . . . . . . . . . . . . . . . . Disable Machine 870 | . 15 . . . 75 . . . . 60 . 45 . 15 . 45 120 75 . 150 . 45 195 30 . . . Anti-Garrison Action 3150 | . . . . . . 100 . 250 . 200 . 1250 . . . 500 . 750 . . . . . . 50 . 50 Destroy Structure 2180 | . 11 . . . 56 45 . 35 . 66 7 98 . 31 . 127 108 635 14 218 . 335 255 84 26 21 8 Partial Spotted 90 | . . . . . . . . . . . . . . . . . . . . 15 . . 30 45 . . . Lose Combat Pursuer 930 | . . . . 30 105 90 . 60 . 90 45 105 . 60 . . . 45 30 75 . 60 60 15 . 45 15 Miscellaneous 278 | . . . . . . . . . . . . . . . . . . . . . . 278 . . . . . Influence Decreases 17918 | 35 221 131 52 300 617 246 833 301 370 135 868 433 1217 549 768 231 846 497 1491 2030 1400 842 976 1051 459 737 282 Entered New Map 9894 | . 2 14 52 . . 146 441 51 260 55 534 153 1207 399 482 81 528 297 1281 770 1400 . 406 577 279 387 92 Time Decay 4195 | 35 219 117 . 270 495 . 222 . 110 . 294 . 10 . 286 . 238 . 60 550 . 475 440 214 . 160 . Lost Part 1910 | . . . . 30 63 20 . 170 . 60 . 200 . 70 . 30 . . 30 360 . 247 130 40 140 190 130 Lost Ally 1769 | . . . . . 59 80 20 80 . 20 40 80 . 80 . 120 80 200 120 350 . 120 . 220 40 . 60 Purge Threat 150 | . . . . . . . 150 . . . . . . . . . . . . . . . . . . . . Squads Dispatched 78 | . 4 . . 1 5 . 2 . . . 2 . . 2 1 . 2 . 12 12 . 11 13 7 . 4 . Investigation 9 | . 3 . . 1 . . 1 . . . . . . . . . . . . 2 . 1 . 1 . . . Extermination 16 | . . . . . . . . . . . 1 . . . 1 . 1 . . 3 . 4 4 1 . 1 . Reinforcement 27 | . 1 . . . 5 . . . . . . . . 2 . . 1 . 1 3 . 3 5 3 . 3 . Assault 19 | . . . . . . . . . . . 1 . . . . . . . 10 4 . 1 2 1 . . . Garrison 4 | . . . . . . . 1 . . . . . . . . . . . 1 . . 1 1 . . . . Intercept 3 | . . . . . . . . . . . . . . . . . . . . . . 1 1 1 . . . Searches Triggered . | . . . . . . . . . . . . . . . . . . . . . . . . . . . . Construction Impeded 5 | . . . . . 1 . . . . . . . . . . . . . . . . 2 1 . . 1 . Haulers Reinforced 2 | . . . . . . . . . . . . . . . . . 1 . . . . . . . . 1 . Active Scanning Responses . | . . . . . . . . . . . . . . . . . . . . . . . . . . . . Cargo Convoy Interrupts . | . . . . . . . . . . . . . . . . . . . . . . . . . . . . Alert ID Control Effect 99 | . . . . . . . . . . . . . . 1 . 19 6 14 10 20 . 7 16 6 . . . Stealth | -11 -10 -10 -10 -9 -8 -8 -7 -7 -7 -7 -6 -6 -6 -6 -5 -5 -4 -4 -3 -3 -3 -2 -2 -2 -2 -1 -1 --------- Run | Yrd Mat Min Exi Min Mat Gar Fac Gar Fac Gar Fac Gar Fac DSF Fac Gar Fac Gar Res Arm Lab Res Tes Frg Gar Acc Gar Distress Signals 17 | . 1 . . . 3 . . 1 . . . . . . . . . . 1 6 . . 2 3 . . . Communications Jammed 79 | . . . . . . . . . . . . . . . . . . . . 79 . . . . . . . Distress Signals 79 | . . . . . . . . . . . . . . . . . . . . 79 . . . . . . . Times Spotted 658 | . 7 8 . 11 41 31 6 22 . 42 9 49 . 13 . 45 20 33 23 88 1 56 49 46 16 19 23 Peak Tracking Total 12 | . 2 3 . 4 5 5 3 6 . 12 4 9 . 3 . 8 5 8 11 9 1 7 7 9 11 5 9 Tactical Retreats 40 | . . . . 1 3 2 . 2 . 5 3 6 . 2 . . . 1 2 4 . 2 3 1 . 2 1 Traps | -11 -10 -10 -10 -9 -8 -8 -7 -7 -7 -7 -6 -6 -6 -6 -5 -5 -4 -4 -3 -3 -3 -2 -2 -2 -2 -1 -1 ------- Run | Yrd Mat Min Exi Min Mat Gar Fac Gar Fac Gar Fac Gar Fac DSF Fac Gar Fac Gar Res Arm Lab Res Tes Frg Gar Acc Gar Traps Triggered 51 | . 2 . . . 1 1 2 3 . . . 4 . 1 2 4 1 12 1 4 . 2 4 2 . 2 3 Indirectly . | . . . . . . . . . . . . . . . . . . . . . . . . . . . . Trap Hack Attempts . | . . . . . . . . . . . . . . . . . . . . . . . . . . . . Triggered . | . . . . . . . . . . . . . . . . . . . . . . . . . . . . Disarmed . | . . . . . . . . . . . . . . . . . . . . . . . . . . . . Reprogrammed . | . . . . . . . . . . . . . . . . . . . . . . . . . . . . Reused 25 | . . . . . . 2 . . . 2 3 9 . . . 1 . . 1 3 . . . . 4 . . Traps Reconfigurated 92 | . . . . . 3 12 2 1 . . 6 7 . . 5 8 . 7 1 11 . 3 12 4 4 2 4 Traps Extracted . | . . . . . . . . . . . . . . . . . . . . . . . . . . . . Installed 7 | . . . . . . 1 . . . 2 . 3 . . . 1 . . . . . . . . . . . Triggered 25 | . . . . . . 2 . . . 2 3 9 . . . 1 . . 1 3 . . . . 4 . . Most Traps Carried 3 | . . . . . 3 3 . . . 1 . 2 . . 1 1 . . . . . . . . . . . Machines | -11 -10 -10 -10 -9 -8 -8 -7 -7 -7 -7 -6 -6 -6 -6 -5 -5 -4 -4 -3 -3 -3 -2 -2 -2 -2 -1 -1 ---------- Run | Yrd Mat Min Exi Min Mat Gar Fac Gar Fac Gar Fac Gar Fac DSF Fac Gar Fac Gar Res Arm Lab Res Tes Frg Gar Acc Gar Machines Disabled 89 | . 1 . . . 5 2 . 2 . 8 . 10 . 1 . 7 8 11 . 10 4 3 13 2 1 . 1 Max in Single Turn 2 | . 1 . . . 2 1 . 1 . 1 . 1 . 1 . 1 . 1 . 2 2 1 1 1 1 . 1 Garrison Access 2 | . . . . . . . . . . . . . . . . . . . 1 . . . 1 . . . . Garrison Relay 24 | . . . . . . 2 . 2 . 2 . 7 . . . 4 . 5 . . . . . . 1 . 1 Energy Cycler 1 | . . . . . . . . . . . . . . . . . . . . 1 . . . . . . . Machines Repaired . | . . . . . . . . . . . . . . . . . . . . . . . . . . . . Machines Dismantled 1 | . . . . . . . . . . . . 1 . . . . . . . . . . . . . . . Machines Sabotaged . | . . . . . . . . . . . . . . . . . . . . . . . . . . . . Overloaded Fab Kills . | . . . . . . . . . . . . . . . . . . . . . . . . . . . . Hacking | -11 -10 -10 -10 -9 -8 -8 -7 -7 -7 -7 -6 -6 -6 -6 -5 -5 -4 -4 -3 -3 -3 -2 -2 -2 -2 -1 -1 --------- Run | Yrd Mat Min Exi Min Mat Gar Fac Gar Fac Gar Fac Gar Fac DSF Fac Gar Fac Gar Res Arm Lab Res Tes Frg Gar Acc Gar Machines Accessed 55 | . 4 . 2 . 5 1 2 1 2 . 2 2 1 . 2 . 2 3 . 4 1 4 7 5 1 4 . Terminals 35 | . 3 . . . 4 1 1 1 . . 1 2 1 . 1 . . 3 . 4 . 4 3 3 1 2 . Fabricators 2 | . . . . . . . . . . . . . . . . . 1 . . . . . 1 . . . . Repair Stations . | . . . . . . . . . . . . . . . . . . . . . . . . . . . . Recycling Units 1 | . 1 . . . . . . . . . . . . . . . . . . . . . . . . . . Scanalyzers 5 | . . . . . . . . . 1 . . . . . . . . . . . . . 2 1 . 1 . Garrison Access 9 | . . . . . 1 . 1 . 1 . 1 . . . 1 . 1 . . . . . 1 1 . 1 . Total Hacks 99 | . 7 . 2 . 10 1 4 3 4 . 2 3 3 . 4 . 4 6 . 6 4 8 11 8 2 7 . Successful 50 | . 4 . 2 . 6 1 3 1 1 . 1 1 1 . 3 . 3 1 . 2 4 3 8 2 1 2 . Failed 49 | . 3 . . . 4 . 1 2 3 . 1 2 2 . 1 . 1 5 . 4 . 5 3 6 1 5 . Catastrophic 12 | . 1 . . . . . 1 1 . . 1 . . . . . . 2 . . . 1 . 2 . 3 . Database Lockouts . | . . . . . . . . . . . . . . . . . . . . . . . . . . . . Manual 14 | . 4 . 1 . 6 . . . . . . . . . . . . . . . . . . 1 1 1 . Terminals 63 | . 5 . . . 9 1 2 3 . . 1 3 3 . 2 . . 6 . 6 . 8 4 5 2 3 . Fabricators 4 | . . . . . . . . . . . . . . . . . 2 . . . . . 2 . . . . Repair Stations . | . . . . . . . . . . . . . . . . . . . . . . . . . . . . Recycling Units 2 | . 2 . . . . . . . . . . . . . . . . . . . . . . . . . . Scanalyzers 9 | . . . . . . . . . 3 . . . . . . . . . . . . . 3 1 . 2 . Garrison Access 15 | . . . . . 1 . 2 . 1 . 1 . . . 2 . 2 . . . . . 2 2 . 2 . Terminal Hacks 26 | . 2 . 2 . 2 1 1 1 . . . 1 1 . 1 . . 1 . 2 4 3 3 . 1 . . Record 5 | . . . 1 . . . . . . . . . . . . . . . . 1 3 . . . . . . Robot Schematic 1 | . . . . . . . . . . . . . . . . . . . . . . 1 . . . . . Open Door 1 | . . . . . . . . . . . . . . . . . . . . 1 . . . . . . . Open DSF 2 | . . . . . . . . . . . . . 1 . . . . . . . . 1 . . . . . Branch Access Points 1 | . . . . . . . . . . . . . . . . . . . . . . 1 . . . . . Emergency Access Points 3 | . . . . . . . . 1 . . . 1 . . . . . 1 . . . . . . . . . Garrison Index 1 | . . . . . . . . . . . . . . . 1 . . . . . . . . . . . . Unreport Threat 1 | . . . . . . . 1 . . . . . . . . . . . . . . . . . . . . Locate Traps 2 | . . . . . . . . . . . . . . . . . . . . . . . 2 . . . . Registered Components 1 | . . . . . 1 . . . . . . . . . . . . . . . . . . . . . . Zone Layout 3 | . 2 . . . 1 . . . . . . . . . . . . . . . . . . . . . . Garrison Registry 1 | . . . . . . 1 . . . . . . . . . . . . . . . . . . . . . Patrol Navigation 1 | . . . . . . . . . . . . . . . . . . . . . . . . . 1 . . Proto ID Catalog 1 | . . . 1 . . . . . . . . . . . . . . . . . . . . . . . . Protovariant Controls 1 | . . . . . . . . . . . . . . . . . . . . . . . 1 . . . . Release Object 1 | . . . . . . . . . . . . . . . . . . . . . 1 . . . . . . Fabricator Hacks 3 | . . . . . . . . . . . . . . . . . 1 . . . . . 2 . . . . Network Status 2 | . . . . . . . . . . . . . . . . . 1 . . . . . 1 . . . . Load Schematic 1 | . . . . . . . . . . . . . . . . . . . . . . . 1 . . . . Repair Station Hacks . | . . . . . . . . . . . . . . . . . . . . . . . . . . . . Recycling Unit Hacks 1 | . 1 . . . . . . . . . . . . . . . . . . . . . . . . . . Retrieve Components 1 | . 1 . . . . . . . . . . . . . . . . . . . . . . . . . . Scanalyzer 1 | . . . . . . . . . . . . . . . . . . . . . . . 1 . . . . Retrieve Study 1 | . . . . . . . . . . . . . . . . . . . . . . . 1 . . . . Garrison Access Hacks 15 | . . . . . 1 . 2 . 1 . 1 . . . 2 . 2 . . . . . 2 2 . 2 . Unlock Access 8 | . . . . . 1 . 1 . 1 . 1 . . . 1 . 1 . . . . . . 1 . 1 . Seal Access 1 | . . . . . . . . . . . . . . . . . . . . . . . 1 . . . . Coupler Status 6 | . . . . . . . 1 . . . . . . . 1 . 1 . . . . . 1 1 . 1 . Unauthorized Hacks 4 | . 1 . . . 3 . . . . . . . . . . . . . . . . . . . . . . Terminals 3 | . . . . . 3 . . . . . . . . . . . . . . . . . . . . . . Assimilate 1 | . . . . . 1 . . . . . . . . . . . . . . . . . . . . . . Skim 2 | . . . . . 2 . . . . . . . . . . . . . . . . . . . . . . Fabricators . | . . . . . . . . . . . . . . . . . . . . . . . . . . . . Repair Stations . | . . . . . . . . . . . . . . . . . . . . . . . . . . . . Recycling Units 1 | . 1 . . . . . . . . . . . . . . . . . . . . . . . . . . Tunnel 1 | . 1 . . . . . . . . . . . . . . . . . . . . . . . . . . Scanalyzers . | . . . . . . . . . . . . . . . . . . . . . . . . . . . . Garrison Access . | . . . . . . . . . . . . . . . . . . . . . . . . . . . . Data Cores Recovered 1 | . . . . . . . . . . . . . . . . . . . . . . . . 1 . . . Used . | . . . . . . . . . . . . . . . . . . . . . . . . . . . . Hacking Detections 42 | . 2 . . . 3 1 2 1 2 . 2 1 1 . 2 . 1 3 . 3 . 4 5 5 1 3 . Full Trace Events 5 | . . . . . . . . 1 . . . . . . . . . 2 . 1 . 1 . . . . . Feedback Events . | . . . . . . . . . . . . . . . . . . . . . . . . . . . . Feedback Blocked . | . . . . . . . . . . . . . . . . . . . . . . . . . . . . Robot Schematics Acquired 3 | . . . . . . . . . . . . . . . . . . . . . . 1 2 . . . . Robots Built . | . . . . . . . . . . . . . . . . . . . . . . . . . . . . Authchips . | . . . . . . . . . . . . . . . . . . . . . . . . . . . . Time . | . . . . . . . . . . . . . . . . . . . . . . . . . . . . Total Robot Build Rating . | . . . . . . . . . . . . . . . . . . . . . . . . . . . . Part Schematics Acquired 6 | . . . . . . . . . . . . . . . . . . . . . . . 5 1 . . . Parts Built . | . . . . . . . . . . . . . . . . . . . . . . . . . . . . Authchips . | . . . . . . . . . . . . . . . . . . . . . . . . . . . . Time . | . . . . . . . . . . . . . . . . . . . . . . . . . . . . Total Part Build Rating . | . . . . . . . . . . . . . . . . . . . . . . . . . . . . Part Studies Acquired 1 | . . . . . . . . . . . . . . . . . . . . . . . 1 . . . . Parts Repaired . | . . . . . . . . . . . . . . . . . . . . . . . . . . . . Time . | . . . . . . . . . . . . . . . . . . . . . . . . . . . . Parts Recycled . | . . . . . . . . . . . . . . . . . . . . . . . . . . . . Recycled Matter . | . . . . . . . . . . . . . . . . . . . . . . . . . . . . Retrieved Matter . | . . . . . . . . . . . . . . . . . . . . . . . . . . . . Retrieved Components 1 | . 1 . . . . . . . . . . . . . . . . . . . . . . . . . . Parts Scanalyzed . | . . . . . . . . . . . . . . . . . . . . . . . . . . . . Part Schematics Acquired . | . . . . . . . . . . . . . . . . . . . . . . . . . . . . Parts Damaged . | . . . . . . . . . . . . . . . . . . . . . . . . . . . . Bothacking | -11 -10 -10 -10 -9 -8 -8 -7 -7 -7 -7 -6 -6 -6 -6 -5 -5 -4 -4 -3 -3 -3 -2 -2 -2 -2 -1 -1 ------------ Run | Yrd Mat Min Exi Min Mat Gar Fac Gar Fac Gar Fac Gar Fac DSF Fac Gar Fac Gar Res Arm Lab Res Tes Frg Gar Acc Gar Used RIF Installer 9 | . . . . . . 1 . 2 . 1 . 2 . . . 1 . 1 . . . . . . 1 . . Coupler Efficiency 1 | . . . . . . . . . . 1 . . . . . . . . . . . . . . . . . Code Merge 1 | . . . . . . . . . . . . . . . . 1 . . . . . . . . . . . Command Fork 1 | . . . . . . . . . 1 . . . . . . . . . . . . . . . . . . Zone Cloak 1 | . . . . . . . . 1 . . . . . . . . . . . . . . . . . . . Robot Detection 1 | . . . . . . . . 1 . . . . . . . . . . . . . . . . . . . Watcher Feeds 1 | . . . . . . . . . . . . 1 . . . . . . . . . . . . . . . Alert ID Control 1 | . . . . . . . . . . . . 1 . . . . . . . . . . . . . . . Structural Interface 1 | . . . . . . . . . . . . . . . . . . 1 . . . . . . . . . Crosswire 1 | . . . . . . . . . . . . . . . . . . . . . . . . . 1 . . Robots Hacked 77 | . . . 4 . . 1 4 3 . . . . . 3 . 14 5 6 10 13 . 1 2 8 2 . 1 Non-combat 8 | . . . 3 . . . 2 . . . . . . . . . 1 . 1 1 . . . . . . . Combat 69 | . . . 1 . . 1 2 3 . . . . . 3 . 14 4 6 9 12 . 1 2 8 2 . 1 Robot Hacks Applied 84 | . . . 4 . . 2 5 3 . . . . . 3 . 16 6 6 11 14 . 1 2 8 2 . 1 parse_system 11 | . . . 4 . . . . . . . . . . . . 2 . . . 3 . 1 1 . . . . drop_inventory 2 | . . . . . . . 1 . . . . . . . . . 1 . . . . . . . . . . locate_stockpiles 1 | . . . . . . . . . . . . . . . . . 1 . . . . . . . . . . find_recycling 1 | . . . . . . . . . . . . . . . . . . . 1 . . . . . . . . map_route 1 | . . . . . . . 1 . . . . . . . . . . . . . . . . . . . . find_shortcuts 1 | . . . . . . . . . . . . . . . . . . . . 1 . . . . . . . find_garrison 3 | . . . . . . . 1 . . . . . . . . . 1 . 1 . . . . . . . . amplify_resonance 8 | . . . . . . . . . . . . . . . . 3 . 1 2 . . . . 1 . . 1 reboot_system 3 | . . . . . . 1 . . . . . . . . . . . . 1 1 . . . . . . . overwrite_iff 2 | . . . . . . 1 1 . . . . . . . . . . . . . . . . . . . . formatsys_high 51 | . . . . . . . 1 3 . . . . . 3 . 11 3 5 6 9 . . 1 7 2 . . Relay Couplers Released 102 | . . . . . . 9 . 10 . 8 . 28 . . . 15 . 20 2 . . . 2 . 4 . 4 Machine Destruction 102 | . . . . . . 9 . 10 . 8 . 28 . . . 15 . 20 2 . . . 2 . 4 . 4 Attached 40 | . . . . . . 1 2 4 . 1 . 2 1 5 . 3 3 4 . 6 . . 1 . 3 . 4 Crosswired 5 | . . . . . . . . . . . . . . . . . . . . . . . . . 1 . 4 Merged Code Value 99 | . . . . . . . . . . . . . . . . . . 85 . 6 . . . . 8 . . Fabnet Peak Effective % . | . . . . . . . . . . . . . . . . . . . . . . . . . . . . Robots Rewired 20 | . . . . . . 6 . . . 2 1 . . . . 2 . 2 . 7 . . . . . . . Allies Hacked 8 | . . . . . . . . . . 4 . . . . . . . 1 . 1 . 1 . . . . 1 Hacks Repelled . | . . . . . . . . . . . . . . . . . . . . . . . . . . . . Allies | -11 -10 -10 -10 -9 -8 -8 -7 -7 -7 -7 -6 -6 -6 -6 -5 -5 -4 -4 -3 -3 -3 -2 -2 -2 -2 -1 -1 -------- Run | Yrd Mat Min Exi Min Mat Gar Fac Gar Fac Gar Fac Gar Fac DSF Fac Gar Fac Gar Res Arm Lab Res Tes Frg Gar Acc Gar Total Allies 120 | . . 1 . 3 6 7 2 3 . 5 1 5 . 4 . 17 4 9 10 19 . 3 4 10 2 . 5 Largest Group 13 | . . 1 . 3 4 6 1 2 . 3 3 3 . 2 . 11 10 13 12 9 5 5 2 11 1 . 3 Highest-Rated Group 1342 | . . 31 . 40 72 85 16 48 . 48 57 169 . 92 . 827 762 1129 874 676 463 463 514 1342 56 . 357 Highest-Rated Ally 344 | . . 31 . 16 18 85 16 32 . 16 41 95 . 46 . 148 148 148 148 143 143 143 344 324 56 . 119 Total Orders 17 | . . . . . . . . . . . . . . . . . 3 11 . . 3 . . . . . . STAY 10 | . . . . . . . . . . . . . . . . . 3 6 . . 1 . . . . . . ROAM 2 | . . . . . . . . . . . . . . . . . . 2 . . . . . . . . . FOLLOW 5 | . . . . . . . . . . . . . . . . . . 3 . . 2 . . . . . . Ally Attacks 860 | . . 3 . . 21 7 5 17 . 13 16 25 . 13 . 70 47 183 57 193 3 42 59 67 2 . 17 Total Damage 30686 | . . 43 . . 175 273 58 355 . 147 200 1099 . 459 . 2633 1711 6624 1814 6947 44 1778 2457 2756 166 . 947 Kills 184 | . . . . . 1 . 1 6 . 2 2 6 . 1 . 25 19 35 12 29 . 10 17 13 . . 5 Allies Corrupted 5 | . . . . . . . . . . . . . . . . . . . . 3 . 1 . . . . 1 Allies Melted 3 | . . . . . . . . . . . . 1 . . . . . 2 . . . . . . . . . X0-1V1 Amusement Gains 333 | . 6 . . . . 10 . 15 . 20 . 5 . 20 . . 10 41 . 36 33 26 51 55 . 5 . Average Entertainment 55 | . 4 1 . 4 3 9 19 26 34 49 54 48 29 45 49 49 54 83 100 90 . 59 94 70 95 96 100 Good Acts 207 | . 1 9 . 5 21 5 1 5 4 7 3 27 . 18 2 17 . 11 2 22 . 15 20 2 3 5 2 Bad Acts 93 | . 2 10 . 4 4 4 . 1 . 4 1 8 . 1 1 1 . 11 1 8 . 10 14 5 2 1 . Intel | -11 -10 -10 -10 -9 -8 -8 -7 -7 -7 -7 -6 -6 -6 -6 -5 -5 -4 -4 -3 -3 -3 -2 -2 -2 -2 -1 -1 ------- Run | Yrd Mat Min Exi Min Mat Gar Fac Gar Fac Gar Fac Gar Fac DSF Fac Gar Fac Gar Res Arm Lab Res Tes Frg Gar Acc Gar Active Infowar (turns) 13247 | 13 1065 1319 882 287 1811 794 476 1259 234 1420 655 663 . . . 2 . . . 638 . 165 939 431 . 194 . Optics 6321 | . . . . . 1558 794 476 1259 234 781 . . . . . . . . . . . . 788 431 . . . IFF 194 | . . . . . . . . . . . . . . . . . . . . . . . . . . 194 . Terrain 737 | . . . . . 421 . . . . . . . . . . . . . . . . 165 151 . . . . Seismic 3566 | 13 1065 1319 882 287 . . . . . . . . . . . . . . . . . . . . . . . Decoding 4488 | . . . . . . . 475 1041 234 1420 655 663 . . . . . . . . . . . . . . . Machine Analysis 4631 | . . . . . 1571 794 476 1259 234 297 . . . . . . . . . . . . . . . . . Spoofing 475 | . . . . . . . . . . . . . . . . 2 . . . 473 . . . . . . . Jamming 165 | . . . . . . . . . . . . . . . . . . . . 165 . . . . . . . Robot Analysis Total . | . . . . . . . . . . . . . . . . . . . . . . . . . . . . Derelict Logs Recovered 2 | . . 1 . 1 . . . . . . . . . . . . . . . . . . . . . . . Drone Launches . | . . . . . . . . . . . . . . . . . . . . . . . . . . . . Drone Recoveries . | . . . . . . . . . . . . . . . . . . . . . . . . . . . . Decoded 0b10 Intel 62 | . . . . . . . 6 14 5 15 9 13 . . . . . . . . . . . . . . . Traps 36 | . . . . . . . . 1 3 14 5 13 . . . . . . . . . . . . . . . Emergency Access 5 | . . . . . . . . . 2 1 2 . . . . . . . . . . . . . . . . Garrisons 1 | . . . . . . . . . . . 1 . . . . . . . . . . . . . . . . Patrols 17 | . . . . . . . 4 13 . . . . . . . . . . . . . . . . . . . Guards 2 | . . . . . . . 2 . . . . . . . . . . . . . . . . . . . . Exits 1 | . . . . . . . . . . . 1 . . . . . . . . . . . . . . . . Exploration | -11 -10 -10 -10 -9 -8 -8 -7 -7 -7 -7 -6 -6 -6 -6 -5 -5 -4 -4 -3 -3 -3 -2 -2 -2 -2 -1 -1 ------------- Run | Yrd Mat Min Exi Min Mat Gar Fac Gar Fac Gar Fac Gar Fac DSF Fac Gar Fac Gar Res Arm Lab Res Tes Frg Gar Acc Gar Turns Passed 27530 | 235 1069 1319 882 752 1818 794 476 1259 234 1420 655 3003 35 1826 628 2126 509 2328 357 1580 422 1454 1085 457 265 329 213 Spaces Moved 11708 | 109 441 511 359 347 651 332 258 326 101 421 250 885 14 269 129 716 184 785 118 838 207 800 1279 614 202 382 180 Core 140 | 11 . . . 1 . . . 4 . . . . . . . . . . . 6 . . . . . 9 109 Treads 2232 | 98 441 511 359 94 100 . . 73 14 101 . 349 14 78 . . . . . . . . . . . . . Legs 3322 | . . . . 30 . . . 227 7 . . . . 191 20 716 184 785 118 484 207 353 . . . . . Wheels 2794 | . . . . 222 551 332 258 22 80 320 250 536 . . 109 . . . . . . 114 . . . . . Hover 3200 | . . . . . . . . . . . . . . . . . . . . 348 . 333 1279 614 202 353 71 Flight 20 | . . . . . . . . . . . . . . . . . . . . . . . . . . 20 . Fastest Speed 39 | 50 160 240 240 105 105 135 123 123 190 180 190 190 250 250 140 215 215 182 182 44 130 50 39 39 39 39 50 Average Speed 157 | 148 163 240 240 159 196 149 139 319 200 218 195 224 250 271 158 215 215 195 191 111 155 123 42 41 44 53 57 Slowest Speed 1750 | 160 240 240 240 900 320 150 150 1750 410 320 200 410 250 960 250 215 215 215 202 250 220 330 104 104 101 101 200 Overloaded Moves . | . . . . . . . . . . . . . . . . . . . . . . . . . . . . Propulsion Burnouts . | . . . . . . . . . . . . . . . . . . . . . . . . . . . . Robots Hopped 1 | . . . . . . . . . . . . . . . . . . . . . . . . . . 1 . Potential Cave-ins 1 | . . . . . . . . . . . . . . . . . . 1 . . . . . . . . . Cave-ins Triggered 1 | . . . . . . . . . . . . . . 1 . . . . . . . . . . . . . Teleports 1 | . . . . . . . . . . . . . . . . . . . . . . 1 . . . . . Exploration Rate (%) 48 | 5 62 99 71 91 55 49 10 51 4 53 7 80 . 94 5 88 13 96 7 65 98 19 95 24 36 15 28 Regions Visited 27 Branch Regions 7 Pre-discovered Areas 3 | . 1 . 1 1 . . . . . . . . . . . . . . . . . . . . . . . Known Exits Taken 13 | . . 1 . 1 1 . 1 . 1 . 1 . 1 . 1 . 1 . . . . 1 1 1 . 1 . Unknown Exits Taken 6 | 1 1 . 1 . . . . . . . . . . . . . . . 1 1 1 . . . . . . Scrap Searched 4 | . . 2 . 2 . . . . . . . . . . . . . . . . . . . . . . . Spaces Dug 46 | . . . . . . . . . . 2 2 . . . . 7 . 18 1 5 . 5 2 3 1 . . Terrain Destroyed 726 | . 28 . . . 61 17 . 1 . 60 7 55 . 36 . 15 3 32 2 120 10 150 85 20 14 9 1 Melee 2 | . . . . . . . . . . . . . . . . . . . . . . . 2 . . . . Projectile 166 | . . . . . 2 . . 1 . 15 7 16 . . . 15 3 32 2 18 . 22 1 10 14 7 1 AOE 515 | . 28 . . . 59 17 . . . 45 . 39 . 34 . . . . . 102 10 128 43 10 . . . Terrain Rammed . | . . . . . . . . . . . . . . . . . . . . . . . . . . . . Walls Destroyed . | . . . . . . . . . . . . . . . . . . . . . . . . . . . . Machines Disabled . | . . . . . . . . . . . . . . . . . . . . . . . . . . . . Actions | -11 -10 -10 -10 -9 -8 -8 -7 -7 -7 -7 -6 -6 -6 -6 -5 -5 -4 -4 -3 -3 -3 -2 -2 -2 -2 -1 -1 --------- Run | Yrd Mat Min Exi Min Mat Gar Fac Gar Fac Gar Fac Gar Fac DSF Fac Gar Fac Gar Res Arm Lab Res Tes Frg Gar Acc Gar Total 18849 | 145 722 555 379 432 987 513 341 461 135 731 386 1651 15 1333 548 1241 281 1503 237 1354 297 1069 1682 785 327 466 273 Wait 3937 | . 205 16 . 17 132 56 21 26 7 97 107 357 1 959 379 370 66 501 84 153 27 32 147 60 65 12 40 Move 11685 | 108 440 510 358 346 651 331 258 325 100 420 250 884 13 268 129 715 183 784 117 837 206 799 1278 614 201 380 180 Hop 1 | . . . . . . . . . . . . . . . . . . . . . . . . . . 1 . Pick Up 312 | 10 22 3 6 2 29 10 9 10 6 20 1 37 . 19 7 15 1 20 . 18 11 10 31 7 3 5 . Fast Attach 230 | . 2 . . 4 9 1 2 11 3 4 2 21 . 9 4 1 . 2 . 29 6 34 34 16 10 13 13 Attach 250 | 7 . . . 2 11 8 4 10 2 16 . 36 1 11 4 2 1 3 3 28 12 30 19 17 5 11 7 Detach 121 | . . . . . 1 5 . 2 . 5 . 12 . 1 3 5 . 4 1 11 7 18 15 14 2 7 8 Swap 165 | . 6 . 5 2 20 7 12 12 4 10 3 18 . 8 2 10 2 8 1 6 . 13 9 2 5 . . Drop 401 | . 9 1 6 4 22 8 5 5 12 32 1 64 . 26 15 21 1 27 1 23 11 19 54 14 8 10 2 Fire 1444 | 18 35 25 . 55 111 58 23 53 1 118 21 192 . 26 5 85 22 96 25 176 15 104 75 39 28 24 14 Melee 81 | . . . 4 . . 14 7 7 . . . . . 6 . . . . . 14 . 9 20 . . . . Ram 5 | . . . . . . . . . . . . 2 . . . . . . . . . 1 . . . . 2 Kick 5 | . . . . . . . . . . . . . . . . . 1 . . 2 2 . . . . . . Crush 6 | 2 3 . . . . . . . . . . 1 . . . . . . . . . . . . . . . Escape Stasis 161 | . . . . . . 8 . . . . . 21 . . . 15 . 45 5 55 . . . 2 . 3 7 Rewire 35 | . . . . . 1 6 . . . 7 1 . . . . 1 4 13 . 2 . . . . . . . Trap 7 | . . . . . . 1 . . . 2 . 3 . . . 1 . . . . . . . . . . . Miscellaneous 3 | . . . . . . . . . . . . 3 . . . . . . . . . . . . . . . Route ------- -11/Scrapyard -10/Materials (discovered 5 exits: [*Mat x2] / [*Min x2] / [*Sub]) -10/Mines (discovered 4 exits: [*Mat x2] / *Exi / [*Sub]) -10/Exiles (discovered 2 exits: [*Min x2]) -9/Mines (discovered 2 exits: *Mat x2) -8/Materials (discovered 3 exits: *Fac x2 / Gar) -8/Garrison (discovered 4 exits: *Fac x3 / [Mat]) -7/Factory -7/Garrison (discovered 2 exits: *Fac x2) -7/Factory -7/Garrison -6/Factory (discovered 4 exits: Fac x2 / [*Low] / Gar) -6/Garrison (discovered 3 exits: *Fac x3) -6/Factory -6/DSF -5/Factory (discovered 2 exits: [*Upp] / Gar) -5/Garrison (discovered 3 exits: *Fac x3) -4/Factory -4/Garrison (discovered 3 exits: [*Res x3]) -3/Research -3/Armory (discovered 3 exits: *Res x2 / *Lab) -3/Lab -2/Research (discovered 2 exits: *Tes x2) -2/Testing (discovered 3 exits: *Acc / [*Sec] / *Frg) -2/Protoforge (discovered 2 exits: *Acc / Gar) -2/Garrison -1/Access (discovered 2 exits: Com / Gar) -1/Garrison History --------- Turn | Location | Event 6 | -11/Scrapyard | Discovered new exit (range 15) 236 | -11/Scrapyard | Entered Materials 301 | -10/Materials | Build established: Mutant 453 | -10/Materials | Discovered new exit (range 13) 647 | -10/Materials | Discovered new exit (range 15) 898 | -10/Materials | Discovered new exit (range 16) 1112 | -10/Materials | Discovered new exit (range 6) 1135 | -10/Materials | Prayed at D.C.S.S. Altar Unit 1200 | -10/Materials | Discovered new exit (range 12) 1255 | -10/Materials | X0-1V1 announced a LAN party 1300 | -10/Materials | Inventory capacity permanently improved by X0-1V1 (+1; -100 max core) 1305 | -10/Materials | Entered Mines 1416 | -10/Mines | Learned Materials garrison access intel 1642 | -10/Mines | Received a Mining Laser from a helpful Derelict 1909 | -10/Mines | Excavation squad dispatched 1909 | -10/Mines | A large section of the Mines collapsed 2020 | -10/Mines | Discovered new exit (range 7) 2322 | -10/Mines | Discovered new exit (range 15) 2413 | -10/Mines | Identified exit to Exiles 2413 | -10/Mines | X0-1V1 revealed exit location to -10/Exiles 2415 | -10/Mines | Discovered new exit (range 6) 2509 | -10/Mines | Core integrity permanently improved by X0-1V1 (+200) 2516 | -10/Mines | X0-1V1 vaporized surrounding terrain (radius 15) 2540 | -10/Mines | X0-1V1 activates XOMVISION 2571 | -10/Mines | X0-1V1 sent hostile S-10 Pest (x3) 2614 | -10/Mines | Deemed a non-threat by the Exiles lab entrance 2624 | -10/Mines | Entered Exiles 2656 | -10/Exiles | Discovered new exit (range 19) 2682 | -10/Exiles | Met 8R-AWN 2728 | -10/Exiles | Met EX-HEX 2864 | -10/Exiles | Met EX-DEC 2940 | -10/Exiles | Learned location of Zion (-7) 3099 | -10/Exiles | Met EX-BIN 3134 | -10/Exiles | Aligned with FarCom system 3137 | -10/Exiles | Given EX-Vault access code 3192 | -10/Exiles | Opened EX-Vault 3211 | -10/Exiles | Found Trap Reconfigurator 3215 | -10/Exiles | Found YOLO Cannon 3226 | -10/Exiles | Found Latent Energy Streamer 3275 | -10/Exiles | Warned to stay clear of 0b10 Research branches 3486 | -10/Exiles | Discovered new exit (range 10) 3506 | -10/Exiles | Stole three prototypes: Trap Reconfigurator, Latent Energy Streamer, YOLO Cannon 3506 | -10/Exiles | Entered Mines 3533 | -9/Mines | Met a Derelict bent on vengeance 3683 | -9/Mines | Discovered new exit (range 12) 3838 | -9/Mines | Lost 3 parts (2n1u) 3913 | -9/Mines | Identified exit to Materials 3913 | -9/Mines | X0-1V1 revealed exit location to -8/Materials 3997 | -9/Mines | Propulsion slot count permanently improved by X0-1V1 (+1) 4097 | -9/Mines | X0-1V1 caused items to flee you 4108 | -9/Mines | Learned location of Storage (-9) 4213 | -9/Mines | Assisted by bots powering up and referring to "LRC-V3" 4231 | -9/Mines | Items stopped fleeing you 4233 | -9/Mines | Learned Materials stockpile data 4258 | -9/Mines | Entered Materials 4258 | -8/Materials | Accompanied by 3 allies 4258 | -8/Materials | Evolved 4 slots: Utility x4 4260 | -8/Materials | Loaded intel: 1 garrison access location 4440 | -8/Materials | Lost 3 allies 4679 | -8/Materials | X0-1V1 sent you to a vault 4718 | -8/Materials | X0-1V1 foreshadows a heat wave 4929 | -8/Materials | Discovered new exit (range 8) 4932 | -8/Materials | Build established: Hauler-Skirmisher 4966 | -8/Materials | Ambient heat levels rising (+10) 4989 | -8/Materials | X0-1V1 whisked you away to safety 5024 | -8/Materials | Discovered new exit (range 3) 5031 | -8/Materials | X0-1V1 redirected Transport squads to designated parking area 5185 | -8/Materials | X0-1V1 put everyone to sleep 5267 | -8/Materials | X0-1V1 sent allied L-31 Rogue (x4) 5284 | -8/Materials | Ambient heat levels rising (+10) 5385 | -8/Materials | Lost 3 allies 5667 | -8/Materials | X0-1V1 caused items to flee you 5692 | -8/Materials | X0-1V1 activates XOMVISION 5734 | -8/Materials | Ambient heat levels falling (-10) 5755 | -8/Materials | X0-1V1 turns hostiles against one another 5871 | -8/Materials | Items stopped fleeing you 5878 | -8/Materials | Ambient heat levels falling (-10) 6076 | -8/Materials | Identified exit to Garrison 6076 | -8/Materials | Entered Garrison 6078 | -8/Garrison | Identified exit to Factory 6078 | -8/Garrison | X0-1V1 revealed exit location to -7/Factory 6091 | -8/Garrison | Triggered checkpoint 6142 | -8/Garrison | Triggered checkpoint 6177 | -8/Garrison | Garrison Relay disabled 6244 | -8/Garrison | Weapon slot count temporarily expanded by X0-1V1 (+3) 6297 | -8/Garrison | Core integrity fell below 50% 6297 | -8/Garrison | Triggered checkpoint 6297 | -8/Garrison | Garrison Relay disabled 6410 | -8/Garrison | Discovered exit to Factory (range 79) 6410 | -8/Garrison | Discovered exit to Factory (range 24) 6410 | -8/Garrison | Discovered exit to Factory (range 74) 6410 | -8/Garrison | Discovered new exit (range 58) 6421 | -8/Garrison | X0-1V1 activates XOMVISION 6605 | -8/Garrison | Triggered checkpoint 6608 | -8/Garrison | Lost 3 allies 6621 | -8/Garrison | X0-1V1 upgraded hostiles (x1) 6624 | -8/Garrison | Triggered checkpoint 6629 | -8/Garrison | Triggered checkpoint 6660 | -8/Garrison | Lost 3 allies 6691 | -8/Garrison | Destroyed 11 combat bots 6730 | -8/Garrison | Triggered checkpoint 6786 | -8/Garrison | Installed Relay Interface Framework 6804 | -8/Garrison | Spotted B-75 Beast 6804 | -8/Garrison | Spotted B-75 Beast 6804 | -8/Garrison | X0-1V1 sent you into danger 6820 | -8/Garrison | Destroyed B-75 Beast 6850 | -8/Garrison | Destroyed B-75 Beast 6851 | -8/Garrison | X0-1V1 whisked you away to safety 6870 | -8/Garrison | Entered Factory 6870 | -7/Factory | Evolved 2 slots: Utility x2 6872 | -7/Factory | Weapon slot count reverted to normal (-3) 6872 | -7/Factory | FarCom data flow suspended 7162 | -7/Factory | Build established: Bothacker-Mutant 7223 | -7/Factory | Garrison activated, responded to threat 7343 | -7/Factory | Identified exit to Garrison 7346 | -7/Factory | Entered Garrison 7346 | -7/Garrison | Accompanied by 1 ally 7372 | -7/Garrison | Triggered checkpoint 7441 | -7/Garrison | Lost 7 parts (3n1u3w) 7528 | -7/Garrison | System corruption reached 10% 7544 | -7/Garrison | Identified exit to Factory 7544 | -7/Garrison | X0-1V1 revealed exit location to -7/Factory 7556 | -7/Garrison | Garrison Relay disabled 7655 | -7/Garrison | Expanded RIF knowledge: Zone Cloak 7735 | -7/Garrison | Core integrity restored by X0-1V1 (+168) 7770 | -7/Garrison | Garrison Relay disabled 8160 | -7/Garrison | Triggered checkpoint 8276 | -7/Garrison | Discovered exit to Factory (range 19) 8292 | -7/Garrison | Triggered checkpoint 8324 | -7/Garrison | X0-1V1 vaporized surrounding terrain (radius 19) 8338 | -7/Garrison | Lost 3 parts (1n1u1w) 8395 | -7/Garrison | Lost 7 parts (1p2n1u3w) 8555 | -7/Garrison | Expanded RIF knowledge: Robot Detection 8605 | -7/Garrison | Entered Factory 8690 | -7/Factory | Build established: Hauler-Mutant 8765 | -7/Factory | Expanded RIF knowledge: Command Fork 8799 | -7/Factory | Identified exit to Garrison 8839 | -7/Factory | Entered Garrison 9190 | -7/Garrison | Core integrity fell below 50% 9261 | -7/Garrison | Triggered checkpoint 9369 | -7/Garrison | Garrison Relay disabled 9553 | -7/Garrison | Triggered checkpoint 9665 | -7/Garrison | X0-1V1 activates XOMVISION 9707 | -7/Garrison | Discovered new exit (range 10) 9753 | -7/Garrison | Triggered checkpoint 9799 | -7/Garrison | Expanded RIF knowledge: Coupler Efficiency 9867 | -7/Garrison | X0-1V1 sent allied G-47 Trooper (x3) 10259 | -7/Garrison | Entered Factory 10259 | -6/Factory | Accompanied by 3 allies 10259 | -6/Factory | Evolved 2 slots: Power x1, Utility x1 10413 | -6/Factory | Identified exit to Factory 10413 | -6/Factory | X0-1V1 revealed exit location to -5/Factory 10533 | -6/Factory | Discovered new exit (range 12) 10609 | -6/Factory | First assault squad dispatched 10914 | -6/Factory | Identified exit to Garrison 10914 | -6/Factory | Entered Garrison 11020 | -6/Garrison | Triggered checkpoint 11167 | -6/Garrison | Garrison Relay disabled 11214 | -6/Garrison | Identified exit to Factory 11214 | -6/Garrison | X0-1V1 revealed exit location to -6/Factory 11325 | -6/Garrison | H-XX Assembler disabled 11543 | -6/Garrison | Triggered checkpoint 11556 | -6/Garrison | Spotted B-75 Beast 11581 | -6/Garrison | Destroyed B-75 Beast 11655 | -6/Garrison | Lost 6 parts (1p1n3u1w) 12030 | -6/Garrison | X0-1V1 sent hostile Thug (x4) 12089 | -6/Garrison | X0-1V1 sent allied S-27 Virus (x3) 12190 | -6/Garrison | Triggered checkpoint 12277 | -6/Garrison | Found embedded Infiltrators 12288 | -6/Garrison | Garrison Relay disabled 12371 | -6/Garrison | X0-1V1 activates XOMVISION 12597 | -6/Garrison | Triggered checkpoint 12605 | -6/Garrison | Core integrity restored by X0-1V1 (+218) 12661 | -6/Garrison | Triggered checkpoint 12731 | -6/Garrison | Triggered checkpoint 12831 | -6/Garrison | Lost 5 parts (2p1n1u1w) 12879 | -6/Garrison | Garrison Relay disabled 13002 | -6/Garrison | Discovered exit to Factory (range 9) 13113 | -6/Garrison | Garrison Relay disabled 13115 | -6/Garrison | Garrison Relay disabled 13117 | -6/Garrison | Garrison Relay disabled 13119 | -6/Garrison | Garrison Relay disabled 13599 | -6/Garrison | X0-1V1 activates XOMVISION 13634 | -6/Garrison | X0-1V1 revealed exit location to -6/Factory 13652 | -6/Garrison | Triggered checkpoint 13704 | -6/Garrison | Expanded RIF knowledge: Watcher Feeds 13726 | -6/Garrison | System corruption reached 10% 13761 | -6/Garrison | Lost 5 parts (1p1n2u1w) 13877 | -6/Garrison | Expanded RIF knowledge: Alert ID Control 13917 | -6/Garrison | Entered Factory 13924 | -6/Factory | Identified exit to DSF 13952 | -6/Factory | Entered DSF 14070 | -6/DSF | Additional patrols routed to DSF 14104 | -6/DSF | X0-1V1 activates XOMVISION 14322 | -6/DSF | Build established: Botlord-Mutant 14325 | -6/DSF | Discovered exit to Factory (range 15) 14364 | -6/DSF | Core integrity restored by X0-1V1 (+228) 14393 | -6/DSF | Crushed by falling debris 14393 | -6/DSF | System corruption reached 30% 14424 | -6/DSF | Lost 3 parts (1p1u1w) 14564 | -6/DSF | X0-1V1 activates XOMVISION 14880 | -6/DSF | Core integrity restored by X0-1V1 (+241) 15090 | -6/DSF | X0-1V1 activates XOMVISION 15346 | -6/DSF | X0-1V1 caused items to flee you 15525 | -6/DSF | Items stopped fleeing you 15726 | -6/DSF | X0-1V1 activates XOMVISION 15778 | -6/DSF | Entered Factory 15778 | -5/Factory | Evolved 2 slots: Propulsion x1, Utility x1 15838 | -5/Factory | X0-1V1 sent you to a vault 15846 | -5/Factory | Found GOLEM Unit 15903 | -5/Factory | Discovered new exit (range 9) 16089 | -5/Factory | Identified exit to Garrison 16406 | -5/Factory | Entered Garrison 16577 | -5/Garrison | Garrison Relay disabled 16774 | -5/Garrison | Build established: Hauler-Golem 16892 | -5/Garrison | X0-1V1 downgraded hostiles (x2) 16963 | -5/Garrison | X0-1V1 activates XOMVISION 17012 | -5/Garrison | Lost 3 allies 17103 | -5/Garrison | Spotted B-75 Beast 17110 | -5/Garrison | Triggered checkpoint 17116 | -5/Garrison | Assimilated Beast 6a with formatsys_high 17140 | -5/Garrison | Triggered checkpoint 17167 | -5/Garrison | Triggered checkpoint 17196 | -5/Garrison | Build established: Botlord-Golem 17267 | -5/Garrison | Discovered new exit (range 12) 17310 | -5/Garrison | Triggered checkpoint 17359 | -5/Garrison | Garrison Relay disabled 17375 | -5/Garrison | Found embedded Infiltrators 17417 | -5/Garrison | Expanded RIF knowledge: Code Merge 17507 | -5/Garrison | Triggered checkpoint 17578 | -5/Garrison | Discovered new exit (range 18) 17661 | -5/Garrison | Triggered checkpoint 17710 | -5/Garrison | Garrison Relay disabled 17715 | -5/Garrison | X0-1V1 activates XOMVISION 17964 | -5/Garrison | Triggered checkpoint 18005 | -5/Garrison | Spotted B-86 Titan 18011 | -5/Garrison | Assimilated Titan 6a with formatsys_high 18022 | -5/Garrison | Rewired B-90 Cyclops 18029 | -5/Garrison | Rewired B-90 Cyclops 18076 | -5/Garrison | X0-1V1 vaporized surrounding terrain (radius 20) 18076 | -5/Garrison | Discovered new exit (range 15) 18514 | -5/Garrison | X0-1V1 activates XOMVISION 18532 | -5/Garrison | Entered Factory 18532 | -4/Factory | Accompanied by 10 allies 18532 | -4/Factory | Evolved 2 slots: Utility x2 18774 | -4/Factory | P-70 Sage assimilated allied Soldier 6b 18858 | -4/Factory | Lost 4 allies 18922 | -4/Factory | Identified exit to Garrison 19041 | -4/Factory | Entered Garrison 19041 | -4/Garrison | Accompanied by 9 allies 19049 | -4/Garrison | H-XX Assembler disabled 19139 | -4/Garrison | Triggered checkpoint 19165 | -4/Garrison | X0-1V1 activates XOMVISION 19173 | -4/Garrison | Garrison Relay disabled 19215 | -4/Garrison | Found Quantum Capacitor 19545 | -4/Garrison | Spotted B-86 Titan 19545 | -4/Garrison | Triggered checkpoint 19550 | -4/Garrison | Assimilated Titan 7a with formatsys_high 19565 | -4/Garrison | Triggered checkpoint 19565 | -4/Garrison | Triggered checkpoint 19593 | -4/Garrison | X0-1V1 mutated your Weapon slot to Propulsion slot 19659 | -4/Garrison | Discovered new exit (range 7) 19664 | -4/Garrison | Spotted B-75 Beast 19705 | -4/Garrison | Rewired B-86 Titan 19724 | -4/Garrison | Rewired B-86 Titan 19783 | -4/Garrison | Triggered checkpoint 19794 | -4/Garrison | Garrison Relay disabled 20023 | -4/Garrison | X0-1V1 upgraded hostiles (x2) 20150 | -4/Garrison | Expanded RIF knowledge: Structural Interface 20166 | -4/Garrison | Discovered new exit (range 14) 20191 | -4/Garrison | Spotted B-86 Titan 20208 | -4/Garrison | Allies destroyed B-86 Titan 20262 | -4/Garrison | Found Relay Coupler [Proto] 20265 | -4/Garrison | Found Relay Coupler [Proto] 20268 | -4/Garrison | Found Relay Coupler [Proto] 20405 | -4/Garrison | Triggered checkpoint 20422 | -4/Garrison | Garrison Relay disabled 20482 | -4/Garrison | Garrison Relay disabled 20523 | -4/Garrison | Triggered checkpoint 20563 | -4/Garrison | Rescued a captive Derelict 20779 | -4/Garrison | Garrison Relay disabled 20858 | -4/Garrison | Discovered new exit (range 8) 20953 | -4/Garrison | X0-1V1 activates XOMVISION 21369 | -4/Garrison | Entered Research 21369 | -3/Research | Accompanied by 5 allies 21369 | -3/Research | Evolved 2 slots: Utility x1, Weapon x1 21429 | -3/Research | X0-1V1 sent you to a vault 21493 | -3/Research | High security lockdown imminent 21573 | -3/Research | High security lockdown engaged 21586 | -3/Research | Discovered new exit (range 4) 21631 | -3/Research | Garrison activated, responded to threat 21666 | -3/Research | Lost 6 allies 21726 | -3/Research | Entered Armory 21726 | -3/Armory | Accompanied by 6 allies 21727 | -3/Armory | Met VL-GR5, who suggested a friendly competition 21883 | -3/Armory | Lost 3 allies 21971 | -3/Armory | VL-GR5 did not survive their latest romp through Armory 21976 | -3/Armory | First assault squad dispatched 22018 | -3/Armory | P-80 Master assimilated allied Sentinel 7d 22026 | -3/Armory | Lost 6 allies 22099 | -3/Armory | Discovered new exit (range 23) 22143 | -3/Armory | X0-1V1 whisked you away to safety 22295 | -3/Armory | Lost 5 parts (1n3u1w) 22391 | -3/Armory | Weapon slot count temporarily expanded by X0-1V1 (+2) 22397 | -3/Armory | System corruption reached 10% 22478 | -3/Armory | Lost 8 parts (1p2n4u1w) 22488 | -3/Armory | X0-1V1 put everyone to sleep 22524 | -3/Armory | System corruption reached 30% 22563 | -3/Armory | Lost 3 parts (2n1u) 22601 | -3/Armory | X0-1V1 downgraded hostiles (x1) 22653 | -3/Armory | Core integrity fell below 50% 22656 | -3/Armory | Destroyed 10 combat bots 22699 | -3/Armory | Lost 13 parts (2p3n5u3w) 22707 | -3/Armory | X0-1V1 sent allied X-77 Beamer (x2) 22759 | -3/Armory | Weapon slot count reverted to normal (-2) 22804 | -3/Armory | Discovered new exit (range 4) 22838 | -3/Armory | Spotted Armor Guard 22839 | -3/Armory | Spotted Armor Guard 22843 | -3/Armory | Assimilated Armor Guard with formatsys_high 22845 | -3/Armory | Assimilated Armor Guard with formatsys_high 22879 | -3/Armory | Spotted Armor Guard 22879 | -3/Armory | Spotted Armor Guard 22918 | -3/Armory | Assimilated Armor Guard with formatsys_high 22942 | -3/Armory | Allies destroyed Armor Guard 22946 | -3/Armory | X0-1V1 woke everyone up 22983 | -3/Armory | Build established: Botlord-Mutant 23004 | -3/Armory | X0-1V1 destroyed Energy Cycler 23035 | -3/Armory | X0-1V1 vaporized surrounding terrain (radius 20) 23113 | -3/Armory | Core integrity fell below 20% 23185 | -3/Armory | Discovered new exit (range 15) 23306 | -3/Armory | Entered Lab 23306 | -3/Lab | Accompanied by 5 allies 23306 | -3/Lab | Discovered new exit (range 9) 23322 | -3/Lab | Unable to decrypt terminal 23351 | -3/Lab | Detected for breach 23357 | -3/Lab | Confronted by A5 23361 | -3/Lab | Gained access to the hidden lab's interior 23389 | -3/Lab | Destroyed A5 23399 | -3/Lab | Found Prototype Hackware 23416 | -3/Lab | Found Alien Artifact 23433 | -3/Lab | Found Alien Artifact 23433 | -3/Lab | Identified Integrated Reactor 23433 | -3/Lab | Installed Integrated Reactor, increased core energy generation (+10) 23440 | -3/Lab | Found Alien Artifact 23452 | -3/Lab | Found Alien Artifact 23475 | -3/Lab | Found Prototype Hackware 23479 | -3/Lab | Found Prototype Device 23479 | -3/Lab | Identified AEGIS Remote Shield 23484 | -3/Lab | Found Prototype Energy Cannon 23488 | -3/Lab | Found Prototype Energy Gun 23488 | -3/Lab | Identified Tachyon Dispersion Ray 23517 | -3/Lab | Found Prototype Special Weapon 23565 | -3/Lab | Unable to decrypt terminal 23566 | -3/Lab | Unable to decrypt terminal 23567 | -3/Lab | Found Alien Artifact 23567 | -3/Lab | Identified LC Capacitor 23574 | -3/Lab | Identified Gui. Remote Datajack 23576 | -3/Lab | Identified Potential Cannon 23728 | -3/Lab | Entered Research 23728 | -2/Research | Accompanied by 5 allies 23728 | -2/Research | Evolved 2 slots: Power x1, Propulsion x1 23759 | -2/Research | Identified Exp. Hacking Suite 23760 | -2/Research | Identified Deep Network Scanner 23944 | -2/Research | Spotted B-90 Cyclops 23955 | -2/Research | Destroyed B-90 Cyclops 24005 | -2/Research | X0-1V1 enhanced Transport squad support 24094 | -2/Research | Garrison activated, responded to threat 24177 | -2/Research | Spotted B-90 Cyclops 24265 | -2/Research | System corruption reached 10% 24304 | -2/Research | Identified Transdimensional Reconstructor 24304 | -2/Research | Warped through subspace 24309 | -2/Research | Spotted B-90 Cyclops 24340 | -2/Research | Intercept squad dispatched 24351 | -2/Research | Lost 3 parts (2p1w) 24358 | -2/Research | Spotted Tracker 24358 | -2/Research | Spotted Tracker 24370 | -2/Research | Destroyed Tracker 24389 | -2/Research | Destroyed Tracker 24394 | -2/Research | Spotted Combat Programmer 24407 | -2/Research | Destroyed Combat Programmer 24422 | -2/Research | Lost 4 parts (1n2u1w) 24435 | -2/Research | Destroyed B-90 Cyclops 24442 | -2/Research | Spotted Combat Programmer 24443 | -2/Research | Destroyed Combat Programmer 24483 | -2/Research | Destroyed 14 combat bots 24487 | -2/Research | Lost 4 parts (1p2n1w) 24508 | -2/Research | X0-1V1 added 0b10 threat records associated with you (major) 24701 | -2/Research | System corruption reached 30% 24705 | -2/Research | X0-1V1 downgraded hostiles (x2) 24728 | -2/Research | First assault squad dispatched 24743 | -2/Research | Core integrity fell below 50% 24751 | -2/Research | Identified Core Expander 24751 | -2/Research | Installed Core Expander, added new Propulsion slot 24752 | -2/Research | Found Hvy. Scimitar of Distortion 24774 | -2/Research | Lost 6 parts (2p1n2u1w) 24848 | -2/Research | Lost 3 parts (1p2n) 25023 | -2/Research | Build established: Hacker-Mutant 25058 | -2/Research | X0-1V1 sent you to a vault 25067 | -2/Research | Discovered new exit (range 13) 25131 | -2/Research | Found Gamma Bomb Array 25166 | -2/Research | Identified exit to Testing 25182 | -2/Research | Entered Testing 25202 | -2/Testing | X0-1V1 sent you to a vault 25227 | -2/Testing | Found Hvy. Scimitar of Distortion 25241 | -2/Testing | Found Prototype Device 25241 | -2/Testing | Identified Exp. EM Shield 25242 | -2/Testing | Scanned by Researcher 25269 | -2/Testing | Lost 3 parts (1p2u) 25306 | -2/Testing | X0-1V1 caused items to flee you 25335 | -2/Testing | Protovariant out of control (PH-Y1C3U4FV54) 25335 | -2/Testing | Unleashed a protovariant (PH-Y1C3U4FV54) 25386 | -2/Testing | Spotted PH-Y1C3U4FV54 25396 | -2/Testing | Items stopped fleeing you 25408 | -2/Testing | Found Prototype Ballistic Cannon 25425 | -2/Testing | X0-1V1 vaporized surrounding terrain (radius 20) 25425 | -2/Testing | Discovered new exit (range 14) 25426 | -2/Testing | Spotted Investigator 25445 | -2/Testing | Identified Perforator 25451 | -2/Testing | X0-1V1 sent allied Lightning (x2) 25471 | -2/Testing | Lost 3 parts (1n2u) 25538 | -2/Testing | X0-1V1 sent you into danger 25591 | -2/Testing | Garrison activated, responded to threat 25602 | -2/Testing | Found Prototype Device 25602 | -2/Testing | Identified 2N-1CE's Frost Array 25660 | -2/Testing | Found Prototype Device 25660 | -2/Testing | Identified Exp. Thermal Shield 25664 | -2/Testing | Found Prototype Processor 25664 | -2/Testing | Identified Exp. Armor Integrity Analyzer 25759 | -2/Testing | X0-1V1 activates XOMVISION 25763 | -2/Testing | Core integrity restored by X0-1V1 (+449) 25764 | -2/Testing | Identified exit to Protoforge 25764 | -2/Testing | X0-1V1 revealed exit location to -2/Protoforge 25775 | -2/Testing | Build established: Scavenger-Mutant 25818 | -2/Testing | Core integrity restored by X0-1V1 (+248) 25820 | -2/Testing | Found Lrg. Botcube 25821 | -2/Testing | X0-1V1 vaporized surrounding terrain (radius 16) 25847 | -2/Testing | Found Prototype Energy Cannon 25847 | -2/Testing | Identified Cld. Nova Cannon 25876 | -2/Testing | Found Prototype Reactor 25931 | -2/Testing | Found Exp. Targeting Computer 25932 | -2/Testing | First assault squad dispatched 25938 | -2/Testing | Lrg. Botcube activated 25976 | -2/Testing | Lrg. Botcube completed mutation into legged form, armed with 4 cannons 26019 | -2/Testing | Found Prototype Ballistic Cannon 26041 | -2/Testing | Spotted Fortress 26106 | -2/Testing | Assimilated Fortress with formatsys_high 26144 | -2/Testing | Intercept squad dispatched 26144 | -2/Testing | Discovered new exit (range 7) 26156 | -2/Testing | X0-1V1 vaporized surrounding terrain (radius 22) 26267 | -2/Testing | Entered Protoforge 26267 | -2/Protoforge | Accompanied by 2 allies 26280 | -2/Protoforge | Spotted Hotshot 26280 | -2/Protoforge | Spotted Hotshot 26280 | -2/Protoforge | Spotted Hotshot 26280 | -2/Protoforge | Spotted Hotshot 26280 | -2/Protoforge | Spotted Hotshot 26280 | -2/Protoforge | Spotted Hotshot 26280 | -2/Protoforge | Spotted Hotshot 26280 | -2/Protoforge | Spotted Hotshot 26280 | -2/Protoforge | Spotted Hotshot 26280 | -2/Protoforge | X0-1V1 sent you into danger 26280 | -2/Protoforge | Superfortress began startup sequence 26282 | -2/Protoforge | Assimilated Hotshot with formatsys_high 26282 | -2/Protoforge | Assimilated Hotshot with formatsys_high 26284 | -2/Protoforge | Assimilated Hotshot with formatsys_high 26284 | -2/Protoforge | Assimilated Hotshot with formatsys_high 26288 | -2/Protoforge | Assimilated Hotshot with formatsys_high 26288 | -2/Protoforge | Assimilated Hotshot with formatsys_high 26290 | -2/Protoforge | Assimilated Hotshot with formatsys_high 26292 | -2/Protoforge | Assimilated Hotshot with formatsys_high 26294 | -2/Protoforge | Allies destroyed Hotshot 26373 | -2/Protoforge | Spotted Hotshot 26374 | -2/Protoforge | Assimilated Hotshot with formatsys_high 26376 | -2/Protoforge | Spotted Hotshot 26377 | -2/Protoforge | Spotted Hotshot 26404 | -2/Protoforge | Destroyed Hotshot 26405 | -2/Protoforge | Destroyed Hotshot 26407 | -2/Protoforge | Allies destroyed Hotshot 26411 | -2/Protoforge | Allies destroyed Hotshot 26439 | -2/Protoforge | Discovered new exit (range 9) 26517 | -2/Protoforge | First assault squad dispatched 26540 | -2/Protoforge | Spotted Decapitator 26544 | -2/Protoforge | Allies destroyed Decapitator 26550 | -2/Protoforge | Spotted Decapitator 26559 | -2/Protoforge | Allies destroyed Decapitator 26592 | -2/Protoforge | Spotted Overlord 26618 | -2/Protoforge | Found Prototype Device 26618 | -2/Protoforge | Identified Cep. Antimissile System 26626 | -2/Protoforge | Found Prototype Protection 26626 | -2/Protoforge | Identified Cep. Core Shell 26630 | -2/Protoforge | Found Cep. Core Shell 26631 | -2/Protoforge | Lost 6 allies 26631 | -2/Protoforge | Found Cep. Core Shell 26686 | -2/Protoforge | Found Prototype Ballistic Gun 26686 | -2/Protoforge | Identified Cep. XC Strikerail 26688 | -2/Protoforge | Found Cep. XC Strikerail 26693 | -2/Protoforge | Found Prototype Device 26693 | -2/Protoforge | Identified Exp. Trap Extractor 26700 | -2/Protoforge | Found Exp. Trap Extractor 26702 | -2/Protoforge | Found Exp. Trap Extractor 26716 | -2/Protoforge | Intercept squad dispatched 26723 | -2/Protoforge | Spotted Decapitator 26724 | -2/Protoforge | Identified exit to Garrison 26724 | -2/Protoforge | Entered Garrison 26734 | -2/Garrison | Expanded RIF knowledge: Crosswire 26784 | -2/Garrison | Garrison Relay disabled 26893 | -2/Garrison | Spotted B-90 Cyclops 26894 | -2/Garrison | X0-1V1 sent hostile H-77 Assassin (x3) 26896 | -2/Garrison | Triggered checkpoint 26899 | -2/Garrison | Triggered checkpoint 26900 | -2/Garrison | Triggered checkpoint 26964 | -2/Garrison | Lost 11 parts (3p2n6u) 26977 | -2/Garrison | Discovered new exit (range 13) 26989 | -2/Garrison | Entered Access 26989 | -1/Access | Evolved 1 slot: Propulsion x1 27004 | -1/Access | Lost 3 parts (1n1u1w) 27004 | -1/Access | System corruption reached 10% 27022 | -1/Access | Identified exit to Command 27022 | -1/Access | X0-1V1 revealed exit location to -1/Command 27088 | -1/Access | X0-1V1 released a cloud of subatomizers 27123 | -1/Access | Lost 4 parts (2n2u) 27191 | -1/Access | Assembled infested ambush trap array 27305 | -1/Access | Spotted B-99 Colossus 27306 | -1/Access | Spotted B-99 Colossus 27313 | -1/Access | X0-1V1 downgraded hostiles (x1) 27318 | -1/Access | Identified exit to Garrison 27318 | -1/Access | Entered Garrison 27344 | -1/Garrison | Found embedded Infiltrators 27346 | -1/Garrison | Lost 12 parts (1p6n5u) 27350 | -1/Garrison | Triggered checkpoint 27359 | -1/Garrison | Garrison Relay disabled 27398 | -1/Garrison | Identified Omega Cannon 27399 | -1/Garrison | P-80 Master assimilated allied CL-K5T(x) 27436 | -1/Garrison | X0-1V1 sent allied Executioner (x3) 27491 | -1/Garrison | Triggered checkpoint 27492 | -1/Garrison | Spotted B-99 Colossus 27515 | -1/Garrison | Core integrity fell below 50% 27527 | -1/Garrison | Core integrity fell below 20% 27531 | -1/Garrison | Destroyed by P-80 Master with Gamma Rifle Last Messages --------------- 27526_ Field strength at 15. 27526_ Stasis field depleted. 27527_ Triggered Stasis Trap. 27527_ A bubble of rippling energy engulfs the area. 27527_ Field strength at 94. 27527_ Field strength at 76. 27528_ Field strength at 63. 27528_ Knocked back. 27528_ Penetrated by Slug. 27528_ Imp. Hacking Suite destroyed. 27528_ Slug penetrates Wall. 27528_ Penetrated by Slug. 27528_ Exp. Armor Integrity Analyzer destroyed. 27528_ Penetrated by Slug. 27528_ Slug penetrates Wall. 27529_ Wall collapses. 27530_ S-43 Plague misfires. 27530_ P-80 Master resets S-43 Plague, system corruption cleaned. 27531_ Acquired Cesium-ion Thruster. 27531_ X0-1V1 howls with laughter! Map ----- +----------------------------------------------------+ | ?????????????????????????????????????????????????? | | ?????????????????????????????????????????????????? | | ?????????????????????????????????????????????????? | | ?????????????????????????????????????????????????? | | ?????????????????????????????????????????????????? | | ?????????????????????????????????????????????????? | | ?????????????????????????????????????????????????? | | ?????????????????????? ?????????????????????????? | | ?????????????????????? #????????????????????????? | | ?????????????????????? #?####???????????????????? | | ?????????????????????# #? #??????????????????? | | ????????????????????## ## ###+???????????????? | | ???????????????????## ???????????????? | | ???????????????????? % ? ?????????????? | | ???????????????????? * ? ????????????? | | ????????????????????# % #? #?????????????? | | ??????????????????### % ## ###???????????? | | ??????????????????#C #???????????? | | ??????????????????#% ????????????? | | ??????????????????#Cpp #???????????? | | ???????????????????C ??????????????? | | ????????????????????# s ##BB #??? #?????????????? | | ????????????????????#ss [;BB ## #####?????????? | | ???????????????###### !ss! ????????? | | ???????????????#%%! + *^= ????????? | | ############??##!####!!/^@/ ###???????????? | | #??#" #??##/%%#= ###+##?????????????? | | #### ### #??##!#??#;%%## #??????????????????? | | ???# #?# ##### ####; %#??##;#??????????????????? | | ???##+##?# + !%% %% %; %#?????#??????????????????? | | ????# #??# #####%####;% #????????????????????????? | | ????# #??# #???#!#??## #????????????????????????? | | ????# #??#]#???# #???# %#????????????????????????? | | ?#### #### #####+##### #????????????????????????? | | ?# / +^ [=!% *% |%! #????????????????????????? | | # ####^ !% #????????????????????????? | | ####??# #######%## #####????????????????????????? | | ??????# #?????# ## #????????????????????????????? | | ??????# #?????# ## #????????????????????????????? | | ??????# #?????# ## #????????????????????????????? | | ??????# ####### ## #????????????????????????????? | | ??????# + ## #????????????????????????????? | | ??????# ########## #????????????????????????????? | | ????### #???###### #####????????????????????????? | | ????# #???# #????????????????????????? | | ????# #???# #????????????????????????? | | ????# #???# #????????????????????????? | | ????######???# [ #????????????????????????? | | ?????????????# ! [ #????????????????????????? | | ?????????????# * #????????????????????????? | +----------------------------------------------------+ Best States ------------- Heat Dissipation 152 Coolant Potential 120 Energy Generation 82 Energy Capacity 2300 Matter Stores 900 Matter Capacity 900 Sight Range 24 Terrain Scan Range 24 Terrain Scan Density 10 Jamming Range 14 Power Amplification 50 Additional Mass Support 20 Base Temperature (-) 400 Corruption Block 20 Armor Coverage 800 Resistance: KI 65 Resistance: TH 48 Resistance: EX 15 Resistance: EM 75 Resistance: I 15 Resistance: S 15 Resistance: P 15 Core Shielding 90 Power Shielding 90 Propulsion Shielding 90 Utility Shielding 66 Weapon Shielding 90 Weapon Cycling 20 Phase Shifting 15 Evasion (%) 86 Targeting Accuracy 8 Target Analysis 8 Core Analysis 8 Armor Integrity Analysis 50 Recoil Reduction 4 Energy Filtering 50 Particle Charging 25 Offensive Hacking 41 Defensive Hacking 14 Relay Coupler Types 8 Relay Coupler Value 274 Item Schematics ----------------- Electron Diverter | -2/Testing | Archive Spectral Analyzer | -2/Testing | Archive Cld. Q-thruster | -2/Testing | Archive Cld. Field Propulsion Drive | -2/Testing | Archive Exp. Power Amplifier | -2/Testing | Archive Hvy. Hardcell Cannon | -2/Protoforge | Archive Robot Schematics ------------------ C-65 Expert | -2/Research | Hacked H-88 Terminator | -2/Testing | Archive G-73 Enforcer | -2/Testing | Archive Fabricated ------------ Nothing Repaired ---------- Nothing Studied --------- Lgt. Quantum Reactor | -2/Testing | Hacked Alien Tech Used ----------------- Integrated Reactor LC Capacitor Transdimensional Reconstructor Core Expander Achievements -------------- Please No, Not That Challenges ------------ None Game ------ Seed RapidProjectionWall Manual? 0 Play Time 04:25:58 Cumulative 1028.7 hours Start 2026.08.31 @ 00:13:45 End 2026.09.05 @ 05:51:28 Sessions 36 Manual Loads 0 Difficulty Rogue Special Mode None Game No. 1150 Rogue 1150 Adventurer 0 Explorer 0 Win Type - Total 46 Types 22/1/10/3/2/1/3/2/1/1 Lore% 97 Gallery% 97 Achievement% 93 Wizard Run 0 Options --------- Layout 0 ASCII 0 Keyboard 0 Movement Mouse Keybinds 0 Fullscreen 1 Font 24/X11 Map View 76x50 Zoom Use 0% Tactical HUD 1 Map Filters NONE Filters NONE Steam 1 RUN: 4fba4f0d-62bb-4315-9b5d-70c183d66a00